Publisher Label,Publisher URI,"Supplier","Net Amount £","Organisational Unit","Merchant Category Code","Purpose","Payment Date"
"Wolverhampton City Council","http://opendatacommunities.org/id/metropolitan-district-council/wolverhampton","SAINSBURYS LOC4471",6.7,"Key to Inspiration","5411","Provisions (Not for resale)","28/06/2019"
"Wolverhampton City Council","http://opendatacommunities.org/id/metropolitan-district-council/wolverhampton","BIRMINGHAM COUNTY FA",165,"IMPACT","8641","Educ Trips, Holidays, Outings, Activity","28/06/2019"
"Wolverhampton City Council","http://opendatacommunities.org/id/metropolitan-district-council/wolverhampton","WWW.WMCA.CO.UK",33.5,"IMPACT","9399","Services - Fees and Charges","28/06/2019"
"Wolverhampton City Council","http://opendatacommunities.org/id/metropolitan-district-council/wolverhampton","Amazon.co.uk M69MT1H14",75.22,"School Improvement","5969","Equipment - Purchase","28/06/2019"
"Wolverhampton City Council","http://opendatacommunities.org/id/metropolitan-district-council/wolverhampton","Virgin Trains",158,"Wholly Owned Company - Operations","4112","Public Transport","28/06/2019"
"Wolverhampton City Council","http://opendatacommunities.org/id/metropolitan-district-council/wolverhampton","000002200500000",200,"Childrens with Disabilities Team","6011","Financial Assistance In Exceptional Circ","28/06/2019"
"Wolverhampton City Council","http://opendatacommunities.org/id/metropolitan-district-council/wolverhampton","HM PASSPORT OFFICE",75.5,"Childrens with Disabilities Team","9399","Services - Fees and Charges","28/06/2019"
"Wolverhampton City Council","http://opendatacommunities.org/id/metropolitan-district-council/wolverhampton","ARGOS WOLVERHAMPTON",222.44,"LAC Transitions Team","5310","Client Allowances","28/06/2019"
"Wolverhampton City Council","http://opendatacommunities.org/id/metropolitan-district-council/wolverhampton","ARGOS WOLVERHAMPTON",25.82,"LAC Transitions Team","5310","Client Allowances","28/06/2019"
"Wolverhampton City Council","http://opendatacommunities.org/id/metropolitan-district-council/wolverhampton","SAINSBURYS SACAT (2340",53.33,"LAC Transitions Team","5411","Client Allowances","28/06/2019"
"Wolverhampton City Council","http://opendatacommunities.org/id/metropolitan-district-council/wolverhampton","WP-CENTRAL TAXIS L",192.5,"LAC Transitions Team","4121","Client Allowances","28/06/2019"
"Wolverhampton City Council","http://opendatacommunities.org/id/metropolitan-district-council/wolverhampton","PAYPAL  CARLTONASSO",55,"Bert Williams Leisure Centre","8249","Training Expenses","28/06/2019"
"Wolverhampton City Council","http://opendatacommunities.org/id/metropolitan-district-council/wolverhampton","Amazon.co.uk M66398B54",77.08,"Youth Offending Team","5969","Books","28/06/2019"
"Wolverhampton City Council","http://opendatacommunities.org/id/metropolitan-district-council/wolverhampton","Trainline",88.01,"LAC Transitions Team","4112","Client Allowances","28/06/2019"
"Wolverhampton City Council","http://opendatacommunities.org/id/metropolitan-district-council/wolverhampton","Trainline",148.81,"LAC Transitions Team","4112","Public Transport","28/06/2019"
"Wolverhampton City Council","http://opendatacommunities.org/id/metropolitan-district-council/wolverhampton","WP-CENTRAL TAXIS L",228.2,"LAC Transitions Team","4121","Client Allowances","28/06/2019"
"Wolverhampton City Council","http://opendatacommunities.org/id/metropolitan-district-council/wolverhampton","CUMMINGS BROTHERS LOCK",6.25,"Caretakers Community Centre","7399","Equipment - Purchase","28/06/2019"
"Wolverhampton City Council","http://opendatacommunities.org/id/metropolitan-district-council/wolverhampton","POST OFFICE COUNTER",11,"Looked After Team 2","9402","Comms - Postage","28/06/2019"
"Wolverhampton City Council","http://opendatacommunities.org/id/metropolitan-district-council/wolverhampton","CUMMINGS BROTHERS LOCK",3.08,"Caretakers Community Centre","7399","Equipment - Purchase","28/06/2019"
"Wolverhampton City Council","http://opendatacommunities.org/id/metropolitan-district-council/wolverhampton","CUMMINGS BROTHERS LOCK",39.58,"Caretakers Community Centre","7399","Equipment - Purchase","28/06/2019"
"Wolverhampton City Council","http://opendatacommunities.org/id/metropolitan-district-council/wolverhampton","B&M RETAIL LTD",11.63,"LAC Transitions Team","5310","Client Allowances","28/06/2019"
"Wolverhampton City Council","http://opendatacommunities.org/id/metropolitan-district-council/wolverhampton","ARGOS RETAIL GROUP",0,"Carers Support","5310","Equipment - Purchase","28/06/2019"
"Wolverhampton City Council","http://opendatacommunities.org/id/metropolitan-district-council/wolverhampton","B & Q 1243",10.83,"Ernest Bold Court","5211","Equipment - R & M","28/06/2019"
"Wolverhampton City Council","http://opendatacommunities.org/id/metropolitan-district-council/wolverhampton","SAINSBURYS 2040",11.5,"Ernest Bold Court","5411","Provisions (Not for resale)","28/06/2019"
"Wolverhampton City Council","http://opendatacommunities.org/id/metropolitan-district-council/wolverhampton","Trainline.com",22.03,"Head of Service - CINCP","4112","Public Transport","28/06/2019"
"Wolverhampton City Council","http://opendatacommunities.org/id/metropolitan-district-council/wolverhampton","DUDLEY MBC  INTERN",16.5,"CIN/CP Social Work Unit - Area 5","8999","Section 17","28/06/2019"
"Wolverhampton City Council","http://opendatacommunities.org/id/metropolitan-district-council/wolverhampton","HARTSHORNE MOTOR SERVICE",136,"Fleet Management","5511","MOT & HGV Tests","28/06/2019"
"Wolverhampton City Council","http://opendatacommunities.org/id/metropolitan-district-council/wolverhampton","THE RANGE",36.86,"Northicote Farm","5311","Materials","28/06/2019"
"Wolverhampton City Council","http://opendatacommunities.org/id/metropolitan-district-council/wolverhampton","RAYTON ELECT WSALERS L",21.95,"Northicote Farm","5999","Equipment - Purchase","28/06/2019"
"Wolverhampton City Council","http://opendatacommunities.org/id/metropolitan-district-council/wolverhampton","CARVER/WOLVERHAMPTON/L",97.16,"Northicote Farm","5211","Equipment - Purchase","28/06/2019"
"Wolverhampton City Council","http://opendatacommunities.org/id/metropolitan-district-council/wolverhampton","VALUE PRODUCTS LTD",23.58,"EIP Locality 8","5999","Equipment - Purchase","27/06/2019"
"Wolverhampton City Council","http://opendatacommunities.org/id/metropolitan-district-council/wolverhampton","ASDA GROCERIES ONLINE",-0.1,"Bradley Resource Centre","5411","Provisions (Not for resale)","27/06/2019"
"Wolverhampton City Council","http://opendatacommunities.org/id/metropolitan-district-council/wolverhampton","ASDA GROCERIES ONLINE",160.03,"Bradley Resource Centre","5411","Provisions (Not for resale)","27/06/2019"
"Wolverhampton City Council","http://opendatacommunities.org/id/metropolitan-district-council/wolverhampton","COMMS EXPRESS LTD",432.6,"Strategic ICTS (ICT Serv Budget)","5732","Equipment - Purchase","27/06/2019"
"Wolverhampton City Council","http://opendatacommunities.org/id/metropolitan-district-council/wolverhampton","HALCO PRODUCTS",31.69,"Document Centre - General","5072","Equipment - Purchase","27/06/2019"
"Wolverhampton City Council","http://opendatacommunities.org/id/metropolitan-district-council/wolverhampton","WOLVERHAMPTON TROPHY C",9,"IMPACT","5999","Equipment - Purchase","27/06/2019"
"Wolverhampton City Council","http://opendatacommunities.org/id/metropolitan-district-council/wolverhampton","Trainline",59.02,"Technician","4112","Public Transport","27/06/2019"
"Wolverhampton City Council","http://opendatacommunities.org/id/metropolitan-district-council/wolverhampton","EDMUNDSON ELECTRICAL L",91.34,"Street Lighting Maintenance","5065","Equipment - R & M","27/06/2019"
"Wolverhampton City Council","http://opendatacommunities.org/id/metropolitan-district-council/wolverhampton","WWW.WMCA.CO.UK",44,"Court Team","9399","Client Transport","27/06/2019"
"Wolverhampton City Council","http://opendatacommunities.org/id/metropolitan-district-council/wolverhampton","ARGOS OLDBURY",149.99,"LAC Transitions Team","5310","Client Allowances","27/06/2019"
"Wolverhampton City Council","http://opendatacommunities.org/id/metropolitan-district-council/wolverhampton","ARGOS OLDBURY",26.66,"LAC Transitions Team","5310","Client Allowances","27/06/2019"
"Wolverhampton City Council","http://opendatacommunities.org/id/metropolitan-district-council/wolverhampton","ARGOS OLDBURY",141.66,"LAC Transitions Team","5310","Client Allowances","27/06/2019"
"Wolverhampton City Council","http://opendatacommunities.org/id/metropolitan-district-council/wolverhampton","POST OFFICE COUNTER",6.34,"Regional Adoption Agency","9402","Comms - Postage","27/06/2019"
"Wolverhampton City Council","http://opendatacommunities.org/id/metropolitan-district-council/wolverhampton","SCREWFIX TELFORD",49.9,"Ground Maintenance East","5211","Materials","27/06/2019"
"Wolverhampton City Council","http://opendatacommunities.org/id/metropolitan-district-council/wolverhampton","SAINSBURYS PFS (1340)",2,"Mayoral Expenses","5541","Vehicle Maintenance - Repairs","27/06/2019"
"Wolverhampton City Council","http://opendatacommunities.org/id/metropolitan-district-council/wolverhampton","WWW.WMCA.CO.UK",44,"CAT","9399","Client Transport","27/06/2019"
"Wolverhampton City Council","http://opendatacommunities.org/id/metropolitan-district-council/wolverhampton","SAINSBURYS SACAT (2340",18.25,"Mayoral Expenses","5411","Hospitality","27/06/2019"
"Wolverhampton City Council","http://opendatacommunities.org/id/metropolitan-district-council/wolverhampton","Trainline",158.22,"LAC Transitions Team","4112","Public Transport","27/06/2019"
"Wolverhampton City Council","http://opendatacommunities.org/id/metropolitan-district-council/wolverhampton","W HAMPTON1797",208.32,"Cemeteries","5211","Materials","27/06/2019"
"Wolverhampton City Council","http://opendatacommunities.org/id/metropolitan-district-council/wolverhampton","B & Q 1243",17.92,"Cemeteries","5211","Materials","27/06/2019"
"Wolverhampton City Council","http://opendatacommunities.org/id/metropolitan-district-council/wolverhampton","WP-CENTRAL TAXIS L",420,"LAC Team","4121","Client Transport","27/06/2019"
"Wolverhampton City Council","http://opendatacommunities.org/id/metropolitan-district-council/wolverhampton","AMZNMktplace",24.96,"Upper Pendeford Farm Childrens Home","5999","Equipment - Purchase","27/06/2019"
"Wolverhampton City Council","http://opendatacommunities.org/id/metropolitan-district-council/wolverhampton","TRAVELODGE",91.75,"LAC Transitions Team","3615","Accommodation Costs","27/06/2019"
"Wolverhampton City Council","http://opendatacommunities.org/id/metropolitan-district-council/wolverhampton","Central Taxis Limited",12.8,"Looked After Team 2","4121","Client Transport","27/06/2019"
"Wolverhampton City Council","http://opendatacommunities.org/id/metropolitan-district-council/wolverhampton","HM PASSPORT OFFICE",58.5,"Looked After Team 2","9399","Services - Fees and Charges","27/06/2019"
"Wolverhampton City Council","http://opendatacommunities.org/id/metropolitan-district-council/wolverhampton","WWW.WOLVERHAMPTON.GOV.UK",500,"LAC Transitions Team","9399","Client Allowances","27/06/2019"
"Wolverhampton City Council","http://opendatacommunities.org/id/metropolitan-district-council/wolverhampton","WWW.WOLVERHAMPTON.GOV.UK",494.89,"LAC Transitions Team","9399","Client Allowances","27/06/2019"
"Wolverhampton City Council","http://opendatacommunities.org/id/metropolitan-district-council/wolverhampton","WWW.WOLVERHAMPTON.GOV.UK",383.35,"LAC Transitions Team","9399","Client Allowances","27/06/2019"
"Wolverhampton City Council","http://opendatacommunities.org/id/metropolitan-district-council/wolverhampton","WWW.WOLVERHAMPTON.GOV.UK",466.14,"LAC Transitions Team","9399","Client Allowances","27/06/2019"
"Wolverhampton City Council","http://opendatacommunities.org/id/metropolitan-district-council/wolverhampton","WWW.WOLVERHAMPTON.GOV.UK",133.06,"LAC Transitions Team","9399","Client Allowances","27/06/2019"
"Wolverhampton City Council","http://opendatacommunities.org/id/metropolitan-district-council/wolverhampton","TESCO STORES 3057",0,"Carers Support","5411","Provisions (Not for resale)","27/06/2019"
"Wolverhampton City Council","http://opendatacommunities.org/id/metropolitan-district-council/wolverhampton","AMZNMktplace",99.9,"Civic Centre","5999","Equipment - Purchase","27/06/2019"
"Wolverhampton City Council","http://opendatacommunities.org/id/metropolitan-district-council/wolverhampton","WICKES WOLVERHAMPTON",5.08,"Specialist Support Service - North","5211","Equipment - R & M","27/06/2019"
"Wolverhampton City Council","http://opendatacommunities.org/id/metropolitan-district-council/wolverhampton","MHFA ENGLAND CIC LTD",637,"Central Training","8398","Training Expenses","27/06/2019"
"Wolverhampton City Council","http://opendatacommunities.org/id/metropolitan-district-council/wolverhampton","J VAN VLIET BIRMINGHAM",46.91,"Creative Studies Delivery Area","5399","Materials","27/06/2019"
"Wolverhampton City Council","http://opendatacommunities.org/id/metropolitan-district-council/wolverhampton","J VAN VLIET BIRMINGHAM",58.71,"Creative Studies Delivery Area","5399","Materials","27/06/2019"
"Wolverhampton City Council","http://opendatacommunities.org/id/metropolitan-district-council/wolverhampton","CURRYS S/S",44.99,"Fleet Management","5732","Materials","27/06/2019"
"Wolverhampton City Council","http://opendatacommunities.org/id/metropolitan-district-council/wolverhampton","HOMEBASE LTD 103",39.75,"Specialist Support Service - North","5211","Equipment - R & M","27/06/2019"
"Wolverhampton City Council","http://opendatacommunities.org/id/metropolitan-district-council/wolverhampton","ALLISON & STIVEN L",746.5,"Management Support","5085","Equipment - Purchase","27/06/2019"
"Wolverhampton City Council","http://opendatacommunities.org/id/metropolitan-district-council/wolverhampton","AMZNMktplace",29.16,"Fleet Management","5999","Materials","27/06/2019"
"Wolverhampton City Council","http://opendatacommunities.org/id/metropolitan-district-council/wolverhampton","CardtronicsUK",100.95,"Delivery & OCE Development","6011","Financial Assistance In Exceptional Circ","27/06/2019"
"Wolverhampton City Council","http://opendatacommunities.org/id/metropolitan-district-council/wolverhampton","Trainline.com",108.82,"Delivery & OCE Development","4112","Public Transport","27/06/2019"
"Wolverhampton City Council","http://opendatacommunities.org/id/metropolitan-district-council/wolverhampton","WWW.BRISTOWSUTOR.CO.UK",0,"Revenues","9399","Services - Fees and Charges","26/06/2019"
"Wolverhampton City Council","http://opendatacommunities.org/id/metropolitan-district-council/wolverhampton","ASDA SUPERSTORE",16.39,"IMPACT","5411","Provisions (Not for resale)","26/06/2019"
"Wolverhampton City Council","http://opendatacommunities.org/id/metropolitan-district-council/wolverhampton","HORIZON PARKING LTD VT",40,"Private Hire Vehicles","7523","Car Allowances","26/06/2019"
"Wolverhampton City Council","http://opendatacommunities.org/id/metropolitan-district-council/wolverhampton","WM MORRISON FOOD.COM",82.92,"Discretionary Fund","5411","Materials","26/06/2019"
"Wolverhampton City Council","http://opendatacommunities.org/id/metropolitan-district-council/wolverhampton","TRAVELODGE",338.5,"Regional Adoption Agency","3615","Accommodation Costs","26/06/2019"
"Wolverhampton City Council","http://opendatacommunities.org/id/metropolitan-district-council/wolverhampton","Amazon.co.uk M60KC85E4",11.79,"Regional Adoption Agency","5969","Equipment - Purchase","26/06/2019"
"Wolverhampton City Council","http://opendatacommunities.org/id/metropolitan-district-council/wolverhampton","AMZNMktplace",7.44,"Regional Adoption Agency","5999","Equipment - Purchase","26/06/2019"
"Wolverhampton City Council","http://opendatacommunities.org/id/metropolitan-district-council/wolverhampton","TESCO STORES 5194",139.39,"Towers Outdoor Education Centre","5411","Provisions (Not for resale)","26/06/2019"
"Wolverhampton City Council","http://opendatacommunities.org/id/metropolitan-district-council/wolverhampton","WWW.PARTYPIECES.CO.UK",38.68,"Bert Williams Leisure Centre","5969","Equipment - Purchase","26/06/2019"
"Wolverhampton City Council","http://opendatacommunities.org/id/metropolitan-district-council/wolverhampton","WWW.PARTYRAMA.CO.UK",52.8,"Bert Williams Leisure Centre","5999","Events","26/06/2019"
"Wolverhampton City Council","http://opendatacommunities.org/id/metropolitan-district-council/wolverhampton","HOLIDAY INNS",94,"Risk Management & Insurance","3501","Accommodation Costs","26/06/2019"
"Wolverhampton City Council","http://opendatacommunities.org/id/metropolitan-district-council/wolverhampton","Central Taxis Limited",22,"Looked After Team 2","4121","Client Transport","26/06/2019"
"Wolverhampton City Council","http://opendatacommunities.org/id/metropolitan-district-council/wolverhampton","Central Taxis Limited",22,"Looked After Team 2","4121","Client Transport","26/06/2019"
"Wolverhampton City Council","http://opendatacommunities.org/id/metropolitan-district-council/wolverhampton","FACEBK QKFXRKAD22",500,"Central Costs","7311","Marketing \ Non-staff advertising","26/06/2019"
"Wolverhampton City Council","http://opendatacommunities.org/id/metropolitan-district-council/wolverhampton","WWW.ARGOS.CO.UK",96.62,"LAC Transitions Team","5310","Client Allowances","26/06/2019"
"Wolverhampton City Council","http://opendatacommunities.org/id/metropolitan-district-council/wolverhampton","ASDA GROCERIES ONLINE",33.98,"Ernest Bold Court","5411","Provisions (Not for resale)","26/06/2019"
"Wolverhampton City Council","http://opendatacommunities.org/id/metropolitan-district-council/wolverhampton","ASDA GROCERIES ONLINE",67.5,"Ernest Bold Court","5411","Provisions (Not for resale)","26/06/2019"
"Wolverhampton City Council","http://opendatacommunities.org/id/metropolitan-district-council/wolverhampton","WEST MID TRAVEL",446.35,"Community Enablement","4131","Public Transport","26/06/2019"
"Wolverhampton City Council","http://opendatacommunities.org/id/metropolitan-district-council/wolverhampton","Cross Country Trains",9,"Head of Strategic Commissioning � People","4112","Public Transport","26/06/2019"
"Wolverhampton City Council","http://opendatacommunities.org/id/metropolitan-district-council/wolverhampton","INPRINT LITHO LIMITED",141,"Technical Support","2741","Publications","26/06/2019"
"Wolverhampton City Council","http://opendatacommunities.org/id/metropolitan-district-council/wolverhampton","FUNKYPIGEON.COM",23.33,"Looked After Team 2","5947","Financial Assistance In Exceptional Circ","26/06/2019"
"Wolverhampton City Council","http://opendatacommunities.org/id/metropolitan-district-council/wolverhampton","WP-CENTRAL TAXIS L",60,"LAC Team","4121","Client Transport","26/06/2019"
"Wolverhampton City Council","http://opendatacommunities.org/id/metropolitan-district-council/wolverhampton","WP-CENTRAL TAXIS L",103.2,"Looked After Team 2","4121","Client Transport","26/06/2019"
"Wolverhampton City Council","http://opendatacommunities.org/id/metropolitan-district-council/wolverhampton","P WADDINGTON AND CO",-150,"Environmental Protection","4900","R4400","26/06/2019"
"Wolverhampton City Council","http://opendatacommunities.org/id/metropolitan-district-council/wolverhampton","SAINSBURYS 2040",5.7,"Inclusion Support","5411","Provisions (Not for resale)","26/06/2019"
"Wolverhampton City Council","http://opendatacommunities.org/id/metropolitan-district-council/wolverhampton","SAINSBURYS 2040",6.17,"Inclusion Support","5411","Provisions (Not for resale)","26/06/2019"
"Wolverhampton City Council","http://opendatacommunities.org/id/metropolitan-district-council/wolverhampton","WWW.MEMBERS.LANDSCAPEI",562.5,"Landscape","0780","Staff Advertising Costs","26/06/2019"
"Wolverhampton City Council","http://opendatacommunities.org/id/metropolitan-district-council/wolverhampton","AMZNMktplace",35.73,"Mayoral Expenses","5999","Equipment - Purchase","26/06/2019"
"Wolverhampton City Council","http://opendatacommunities.org/id/metropolitan-district-council/wolverhampton","CARVER/WOLVERHAMPTON/L",61.41,"Culwell Street Depot","5211","Materials","26/06/2019"
"Wolverhampton City Council","http://opendatacommunities.org/id/metropolitan-district-council/wolverhampton","B&M RETAIL",16.97,"Children & Young People Support Costs","5310","Client Allowances","25/06/2019"
"Wolverhampton City Council","http://opendatacommunities.org/id/metropolitan-district-council/wolverhampton","ASDA GROCERIES ONLINE",-6.1,"Bradley Resource Centre","5411","Provisions (Not for resale)","25/06/2019"
"Wolverhampton City Council","http://opendatacommunities.org/id/metropolitan-district-council/wolverhampton","ASDA GROCERIES ONLINE",200.08,"Bradley Resource Centre","5411","Provisions (Not for resale)","25/06/2019"
"Wolverhampton City Council","http://opendatacommunities.org/id/metropolitan-district-council/wolverhampton","WOLVERHAMPTON TROPHY C",37.5,"IMPACT","5999","Equipment - Purchase","25/06/2019"
"Wolverhampton City Council","http://opendatacommunities.org/id/metropolitan-district-council/wolverhampton","Virgin Trains",-35.35,"Wholly Owned Company - Operations","4112","Public Transport","25/06/2019"
"Wolverhampton City Council","http://opendatacommunities.org/id/metropolitan-district-council/wolverhampton","Virgin Trains",37.4,"Wholly Owned Company - Operations","4112","Public Transport","25/06/2019"
"Wolverhampton City Council","http://opendatacommunities.org/id/metropolitan-district-council/wolverhampton","WWW.COFFEESUPPLIESDIRE",77.83,"Regional Adoption Agency","5331","Provisions (Not for resale)","25/06/2019"
"Wolverhampton City Council","http://opendatacommunities.org/id/metropolitan-district-council/wolverhampton","AMZNMKTPLACE AMAZON.CO.UK",69.98,"Regional Adoption Agency","5999","Equipment - Purchase","25/06/2019"
"Wolverhampton City Council","http://opendatacommunities.org/id/metropolitan-district-council/wolverhampton","POST OFFICE COUNTER",380,"Regional Adoption Agency","9402","Comms - Postage","25/06/2019"
"Wolverhampton City Council","http://opendatacommunities.org/id/metropolitan-district-council/wolverhampton","POST OFFICE COUNTER",3.17,"Regional Adoption Agency","9402","Comms - Postage","25/06/2019"
"Wolverhampton City Council","http://opendatacommunities.org/id/metropolitan-district-council/wolverhampton","3C_ CP PLUS - Crown Wh",1.25,"Economic Development","7523","Car Allowances","25/06/2019"
"Wolverhampton City Council","http://opendatacommunities.org/id/metropolitan-district-council/wolverhampton","AMZNMktplace",29.42,"Regional Adoption Agency","5999","Equipment - Purchase","25/06/2019"
"Wolverhampton City Council","http://opendatacommunities.org/id/metropolitan-district-council/wolverhampton","AMZNMktplace",9.16,"Regional Adoption Agency","5999","Provisions (Not for resale)","25/06/2019"
"Wolverhampton City Council","http://opendatacommunities.org/id/metropolitan-district-council/wolverhampton","WWW.SINGERMACHINES.CO.UK",182.5,"Towers Outdoor Education Centre","7699","Equipment - Purchase","25/06/2019"
"Wolverhampton City Council","http://opendatacommunities.org/id/metropolitan-district-council/wolverhampton","GOOGLE  ADS9680351324",500,"Communications & Marketing - General","5968","Subscriptions","25/06/2019"
"Wolverhampton City Council","http://opendatacommunities.org/id/metropolitan-district-council/wolverhampton","WWW.IKEA.COM",95,"Towers Outdoor Education Centre","5712","Fixtures and Fittings - Purchases","25/06/2019"
"Wolverhampton City Council","http://opendatacommunities.org/id/metropolitan-district-council/wolverhampton","COSTA COFFEE WALSALL 2",6.83,"Economic Development","5814","Educ Trips, Holidays, Outings, Activity","25/06/2019"
"Wolverhampton City Council","http://opendatacommunities.org/id/metropolitan-district-council/wolverhampton","HIGHSTREETVOUCHERS",90,"Wholly Owned Company - Operations","8641","Educ Trips, Holidays, Outings, Activity","25/06/2019"
"Wolverhampton City Council","http://opendatacommunities.org/id/metropolitan-district-council/wolverhampton","HIGHSTREETVOUCHERS",80,"Wholly Owned Company - Operations","8641","Educ Trips, Holidays, Outings, Activity","25/06/2019"
"Wolverhampton City Council","http://opendatacommunities.org/id/metropolitan-district-council/wolverhampton","HIGHSTREETVOUCHERS",100,"Wholly Owned Company - Operations","8641","Educ Trips, Holidays, Outings, Activity","25/06/2019"
"Wolverhampton City Council","http://opendatacommunities.org/id/metropolitan-district-council/wolverhampton","NAMESCO",21.98,"Communications & Marketing - General","4816","Computing - Purchase of Software","25/06/2019"
"Wolverhampton City Council","http://opendatacommunities.org/id/metropolitan-district-council/wolverhampton","TVLICENSING.CO.UK",154.5,"Upper Pendeford Farm Childrens Home","7392","Services - Consultants","25/06/2019"
"Wolverhampton City Council","http://opendatacommunities.org/id/metropolitan-district-council/wolverhampton","TIPPERS WOLVERHAMPTON",23.81,"Culwell Street Depot","5072","R&M - Departmental planned (external)","25/06/2019"
"Wolverhampton City Council","http://opendatacommunities.org/id/metropolitan-district-council/wolverhampton","WWW.WOLVERHAMPTON.GOV.UK",126.07,"LAC Transitions Team","9399","Client Allowances","25/06/2019"
"Wolverhampton City Council","http://opendatacommunities.org/id/metropolitan-district-council/wolverhampton","WWW.RICHARDHAWORTH.CO.UK",82,"Blakenhall Commty & Healthy Living Ctr","5719","Equipment - Purchase","25/06/2019"
"Wolverhampton City Council","http://opendatacommunities.org/id/metropolitan-district-council/wolverhampton","WICKES WOLVERHAMPTON",19.04,"Ernest Bold Court","5211","Fixtures and Fittings - R&M","25/06/2019"
"Wolverhampton City Council","http://opendatacommunities.org/id/metropolitan-district-council/wolverhampton","B & Q 1243",5.83,"Ernest Bold Court","5211","Fixtures and Fittings - R&M","25/06/2019"
"Wolverhampton City Council","http://opendatacommunities.org/id/metropolitan-district-council/wolverhampton","ASDA GROCERIES ONLINE",5,"Ernest Bold Court","5411","Provisions (Not for resale)","25/06/2019"
"Wolverhampton City Council","http://opendatacommunities.org/id/metropolitan-district-council/wolverhampton","AMZNMktplace",23.32,"Civic Centre Catering","5999","Equipment - Purchase","25/06/2019"
"Wolverhampton City Council","http://opendatacommunities.org/id/metropolitan-district-council/wolverhampton","AMZNMktplace",19.18,"Civic Centre Catering","5999","Equipment - Purchase","25/06/2019"
"Wolverhampton City Council","http://opendatacommunities.org/id/metropolitan-district-council/wolverhampton","COMPANIES HOUSE",13,"Legal Services","9399","Services - Professional Fees","25/06/2019"
"Wolverhampton City Council","http://opendatacommunities.org/id/metropolitan-district-council/wolverhampton","LUCAS LASERENGRAVED",102.95,"Parks - Ranger Service","5399","Equipment - Purchase","25/06/2019"
"Wolverhampton City Council","http://opendatacommunities.org/id/metropolitan-district-council/wolverhampton","THE CUMBERLAND HOT",325,"Members Expenses","7011","Accommodation Costs","25/06/2019"
"Wolverhampton City Council","http://opendatacommunities.org/id/metropolitan-district-council/wolverhampton","ARGOS WOLVERHAMPTO",14.99,"Key to Inspiration","5310","Equipment - Purchase","24/06/2019"
"Wolverhampton City Council","http://opendatacommunities.org/id/metropolitan-district-council/wolverhampton","WWW.TPEXPRESS.CO.UK",94.4,"-","4112","Public Transport","24/06/2019"
"Wolverhampton City Council","http://opendatacommunities.org/id/metropolitan-district-council/wolverhampton","Cross Country Trains",158.7,"-","4112","Public Transport","24/06/2019"
"Wolverhampton City Council","http://opendatacommunities.org/id/metropolitan-district-council/wolverhampton","ASDA STORE 4753",2.4,"Bradley Resource Centre","5411","Provisions (Not for resale)","24/06/2019"
"Wolverhampton City Council","http://opendatacommunities.org/id/metropolitan-district-council/wolverhampton","ASDA GROCERIES ONLINE",163.91,"Bradley Resource Centre","5411","Provisions (Not for resale)","24/06/2019"
"Wolverhampton City Council","http://opendatacommunities.org/id/metropolitan-district-council/wolverhampton","F.LUX SOFTWARE LLC",12.21,"Strategic ICTS (ICT Serv Budget)","5734","Computing - Purchase of Software","24/06/2019"
"Wolverhampton City Council","http://opendatacommunities.org/id/metropolitan-district-council/wolverhampton","WWW.WMCA.CO.UK",56.5,"IMPACT","9399","Services - Fees and Charges","24/06/2019"
"Wolverhampton City Council","http://opendatacommunities.org/id/metropolitan-district-council/wolverhampton","SP   FESTIVALGLITTER",47.5,"IMPACT","5734","Equipment - R & M","24/06/2019"
"Wolverhampton City Council","http://opendatacommunities.org/id/metropolitan-district-council/wolverhampton","Trainline",107.35,"Citizenship, Language & Learning","4112","Public Transport","24/06/2019"
"Wolverhampton City Council","http://opendatacommunities.org/id/metropolitan-district-council/wolverhampton","TRAVELODGE",67.29,"Court Team","3615","Services - Supplies & Services to users","24/06/2019"
"Wolverhampton City Council","http://opendatacommunities.org/id/metropolitan-district-council/wolverhampton","Virgin Trains",220.35,"Wholly Owned Company - Operations","4112","Public Transport","24/06/2019"
"Wolverhampton City Council","http://opendatacommunities.org/id/metropolitan-district-council/wolverhampton","EDMUNDSON ELECTRICAL L",203.02,"Street Lighting Maintenance","5065","Equipment - R & M","24/06/2019"
"Wolverhampton City Council","http://opendatacommunities.org/id/metropolitan-district-council/wolverhampton","TVLICENSING.CO.UK",147.14,"LAC Transitions Team","7392","Client Allowances","24/06/2019"
"Wolverhampton City Council","http://opendatacommunities.org/id/metropolitan-district-council/wolverhampton","TVLICENSING.CO.UK",128.75,"LAC Transitions Team","7392","Client Allowances","24/06/2019"
"Wolverhampton City Council","http://opendatacommunities.org/id/metropolitan-district-council/wolverhampton","PREMIER INN",-15.83,"Regional Adoption Agency","3811","Services - Supplies & Services to users","24/06/2019"
"Wolverhampton City Council","http://opendatacommunities.org/id/metropolitan-district-council/wolverhampton","PREMIER INN",569,"Regional Adoption Agency","3811","Accommodation Costs","24/06/2019"
"Wolverhampton City Council","http://opendatacommunities.org/id/metropolitan-district-council/wolverhampton","Virgin Trains",153.5,"Regional Adoption Agency","4112","Public Transport","24/06/2019"
"Wolverhampton City Council","http://opendatacommunities.org/id/metropolitan-district-council/wolverhampton","Virgin Trains",63.4,"Regional Adoption Agency","4112","Public Transport","24/06/2019"
"Wolverhampton City Council","http://opendatacommunities.org/id/metropolitan-district-council/wolverhampton","SAINSBURYS (2340)",40.33,"EIP Locality 4","5411","Grant Payments","24/06/2019"
"Wolverhampton City Council","http://opendatacommunities.org/id/metropolitan-district-council/wolverhampton","Trainline.com",32.71,"Mental Health Assessment & Care Mgmt","4112","Public Transport","24/06/2019"
"Wolverhampton City Council","http://opendatacommunities.org/id/metropolitan-district-council/wolverhampton","SAINSBURYS PFS (1340)",1.67,"Mayoral Expenses","5541","Vehicle Maintenance - Repairs","24/06/2019"
"Wolverhampton City Council","http://opendatacommunities.org/id/metropolitan-district-council/wolverhampton","POUNDLAND LTD 1463",8.84,"Business Support Services","5310","Equipment - Purchase","24/06/2019"
"Wolverhampton City Council","http://opendatacommunities.org/id/metropolitan-district-council/wolverhampton","Central Taxis Limited",22,"Looked After Team 2","4121","Client Transport","24/06/2019"
"Wolverhampton City Council","http://opendatacommunities.org/id/metropolitan-district-council/wolverhampton","TFL TRAVEL CH",4.8,"Managing Director","4111","Public Transport","24/06/2019"
"Wolverhampton City Council","http://opendatacommunities.org/id/metropolitan-district-council/wolverhampton","ASDA GROCERIES ONLINE",-2.98,"Upper Pendeford Farm Childrens Home","5411","Provisions (Not for resale)","24/06/2019"
"Wolverhampton City Council","http://opendatacommunities.org/id/metropolitan-district-council/wolverhampton","SAINSBURYS (2340)",28.37,"EIP Locality 4","5411","Grant Payments","24/06/2019"
"Wolverhampton City Council","http://opendatacommunities.org/id/metropolitan-district-council/wolverhampton","ASDA GROCERIES ONLINE",252.11,"Upper Pendeford Farm Childrens Home","5411","Provisions (Not for resale)","24/06/2019"
"Wolverhampton City Council","http://opendatacommunities.org/id/metropolitan-district-council/wolverhampton","Central Taxis Limited",22,"Looked After Team 2","4121","Client Transport","24/06/2019"
"Wolverhampton City Council","http://opendatacommunities.org/id/metropolitan-district-council/wolverhampton","HM PASSPORT OFFICE",58.5,"Looked After Team 2","9399","Services - Fees and Charges","24/06/2019"
"Wolverhampton City Council","http://opendatacommunities.org/id/metropolitan-district-council/wolverhampton","Virgin Trains",123,"Looked After Team 2","4112","Client Transport","24/06/2019"
"Wolverhampton City Council","http://opendatacommunities.org/id/metropolitan-district-council/wolverhampton","Virgin Trains",105,"Looked After Team 2","4112","Client Transport","24/06/2019"
"Wolverhampton City Council","http://opendatacommunities.org/id/metropolitan-district-council/wolverhampton","POST OFFICE COUNTER",7.4,"Looked After Team 2","9402","Comms - Postage","24/06/2019"
"Wolverhampton City Council","http://opendatacommunities.org/id/metropolitan-district-council/wolverhampton","AMZNMKTPLACE AMAZON.CO.UK",13.74,"Central Costs","5999","Equipment - Purchase","24/06/2019"
"Wolverhampton City Council","http://opendatacommunities.org/id/metropolitan-district-council/wolverhampton","WWW.AQA.ORG.UK",110,"Central Costs","8299","Training Expenses","24/06/2019"
"Wolverhampton City Council","http://opendatacommunities.org/id/metropolitan-district-council/wolverhampton","SCREWFIX DIRECT",9.99,"Central Costs","5200","Equipment - Purchase","24/06/2019"
"Wolverhampton City Council","http://opendatacommunities.org/id/metropolitan-district-council/wolverhampton","AMZNMktplace",23.32,"Safeguarding Partnership Board","5999","Equipment - Purchase","24/06/2019"
"Wolverhampton City Council","http://opendatacommunities.org/id/metropolitan-district-council/wolverhampton","TFW RAIL SERVICES",8,"Curatorial - Cultural Learning","4112","Public Transport","24/06/2019"
"Wolverhampton City Council","http://opendatacommunities.org/id/metropolitan-district-council/wolverhampton","ASDA GROCERIES ONLINE",42.51,"Ernest Bold Court","5411","Provisions (Not for resale)","24/06/2019"
"Wolverhampton City Council","http://opendatacommunities.org/id/metropolitan-district-council/wolverhampton","AMZNMktplace",92.47,"Global Budgets","5999","Equipment - Purchase","24/06/2019"
"Wolverhampton City Council","http://opendatacommunities.org/id/metropolitan-district-council/wolverhampton","PAYPAL  USMANAHMEDF",42.97,"Global Budgets","5719","Equipment - Purchase","24/06/2019"
"Wolverhampton City Council","http://opendatacommunities.org/id/metropolitan-district-council/wolverhampton","HOMEBASE LTD 103",3.33,"Blakenhall Resource Centre","5211","Equipment - R & M","24/06/2019"
"Wolverhampton City Council","http://opendatacommunities.org/id/metropolitan-district-council/wolverhampton","BCC REGISTER OFFIC",-13.5,"Looked After Team 2","9399","Financial Assistance In Exceptional Circ","24/06/2019"
"Wolverhampton City Council","http://opendatacommunities.org/id/metropolitan-district-council/wolverhampton","P WADDINGTON AND CO",150,"Environmental Protection","4900","R4400","24/06/2019"
"Wolverhampton City Council","http://opendatacommunities.org/id/metropolitan-district-council/wolverhampton","AMZNMKTPLACE AMAZON.CO",18.73,"Bradley Resource Centre","5999","Equipment - Purchase","24/06/2019"
"Wolverhampton City Council","http://opendatacommunities.org/id/metropolitan-district-council/wolverhampton","ARGOS RETAIL GROUP",-15,"CIN/CP Social Work Unit - Area 4","5310","Section 17","24/06/2019"
"Wolverhampton City Council","http://opendatacommunities.org/id/metropolitan-district-council/wolverhampton","Amazon.co.uk M68SB6GM4",9.67,"EIP Locality 7","5969","Grant Payments","24/06/2019"
"Wolverhampton City Council","http://opendatacommunities.org/id/metropolitan-district-council/wolverhampton","AMZNMktplace",13.75,"Mayoral Expenses","5999","Equipment - Purchase","24/06/2019"
"Wolverhampton City Council","http://opendatacommunities.org/id/metropolitan-district-council/wolverhampton","AMZNMktplace",4.98,"Mayoral Expenses","5999","Equipment - Purchase","24/06/2019"
"Wolverhampton City Council","http://opendatacommunities.org/id/metropolitan-district-council/wolverhampton","AMZNMktplace",3.32,"Mayoral Expenses","5999","Equipment - Purchase","24/06/2019"
"Wolverhampton City Council","http://opendatacommunities.org/id/metropolitan-district-council/wolverhampton","CO-OP GROUP 070362",13.8,"Northicote Farm","5411","Provisions (Not for resale)","24/06/2019"
"Wolverhampton City Council","http://opendatacommunities.org/id/metropolitan-district-council/wolverhampton","WICKES WOLVERHAMPTON",15.75,"Northicote Farm","5211","Equipment - Purchase","24/06/2019"
"Wolverhampton City Council","http://opendatacommunities.org/id/metropolitan-district-council/wolverhampton","TFM FARM   COUNTRY",142.7,"Northicote Farm","0763","Equipment - Purchase","24/06/2019"
"Wolverhampton City Council","http://opendatacommunities.org/id/metropolitan-district-council/wolverhampton","Trainline",71.58,"Corporate Parenting","4112","Public Transport","21/06/2019"
"Wolverhampton City Council","http://opendatacommunities.org/id/metropolitan-district-council/wolverhampton","WWW.ICELAND.CO.UK",32.7,"Bradley Resource Centre","5411","Provisions (Not for resale)","21/06/2019"
"Wolverhampton City Council","http://opendatacommunities.org/id/metropolitan-district-council/wolverhampton","ONE STOP 2966",4.95,"Bradley Resource Centre","5411","Provisions (Not for resale)","21/06/2019"
"Wolverhampton City Council","http://opendatacommunities.org/id/metropolitan-district-council/wolverhampton","WWW.WMCA.CO.UK",33.5,"IMPACT","9399","Services - Fees and Charges","21/06/2019"
"Wolverhampton City Council","http://opendatacommunities.org/id/metropolitan-district-council/wolverhampton","London Northwestern Ra",164.3,"Court Team","4112","Public Transport","21/06/2019"
"Wolverhampton City Council","http://opendatacommunities.org/id/metropolitan-district-council/wolverhampton","London Northwestern Ra",30,"Marketing of Exhibitions","4112","Public Transport","21/06/2019"
"Wolverhampton City Council","http://opendatacommunities.org/id/metropolitan-district-council/wolverhampton","EDMUNDSON ELECTRICAL L",47.7,"Street Lighting Maintenance","5065","Equipment - R & M","21/06/2019"
"Wolverhampton City Council","http://opendatacommunities.org/id/metropolitan-district-council/wolverhampton","Trainline",97.17,"SEN Special Education Admin","4112","Public Transport","21/06/2019"
"Wolverhampton City Council","http://opendatacommunities.org/id/metropolitan-district-council/wolverhampton","000002200500000",250,"Childrens with Disabilities Team","6011","Financial Assistance In Exceptional Circ","21/06/2019"
"Wolverhampton City Council","http://opendatacommunities.org/id/metropolitan-district-council/wolverhampton","FACEBK J5AXJNAAR2",500,"Communications & Marketing - General","7311","Marketing \ Non-staff advertising","21/06/2019"
"Wolverhampton City Council","http://opendatacommunities.org/id/metropolitan-district-council/wolverhampton","CROWNE PLAZA",-295.83,"Mayoral Expenses","7011","Accommodation Costs","21/06/2019"
"Wolverhampton City Council","http://opendatacommunities.org/id/metropolitan-district-council/wolverhampton","ASDA SUPERSTORE",6.53,"Youth Offending Team","5411","Provisions (Not for resale)","21/06/2019"
"Wolverhampton City Council","http://opendatacommunities.org/id/metropolitan-district-council/wolverhampton","ASDA SUPERSTORE",84.12,"EIP Locality 6","5411","Grant Payments","21/06/2019"
"Wolverhampton City Council","http://opendatacommunities.org/id/metropolitan-district-council/wolverhampton","POST OFFICE COUNTER",8.7,"LAC Team","9402","Comms - Postage","21/06/2019"
"Wolverhampton City Council","http://opendatacommunities.org/id/metropolitan-district-council/wolverhampton","WWW.VIDEK.CO.UK",175.35,"Strategic ICTS (ICT Serv Budget)","5045","Computing - Purchase of Hardware","21/06/2019"
"Wolverhampton City Council","http://opendatacommunities.org/id/metropolitan-district-council/wolverhampton","Amazon Prime M69KK6GZ4",6.66,"Central Baths","5968","Subscriptions","21/06/2019"
"Wolverhampton City Council","http://opendatacommunities.org/id/metropolitan-district-council/wolverhampton","CardtronicsUK",100,"Intensive Family Support Team","6011","Financial Assistance In Exceptional Circ","21/06/2019"
"Wolverhampton City Council","http://opendatacommunities.org/id/metropolitan-district-council/wolverhampton","Virgin Trains",69.7,"Looked After Team 2","4112","Public Transport","21/06/2019"
"Wolverhampton City Council","http://opendatacommunities.org/id/metropolitan-district-council/wolverhampton","Virgin Trains",81,"Looked After Team 2","4112","Public Transport","21/06/2019"
"Wolverhampton City Council","http://opendatacommunities.org/id/metropolitan-district-council/wolverhampton","Trainline",30.17,"Children & Young People Support Costs","4112","Public Transport","21/06/2019"
"Wolverhampton City Council","http://opendatacommunities.org/id/metropolitan-district-council/wolverhampton","AMZNMKTPLACE AMAZON.CO.UK",27,"LAC Transitions Team","5999","Client Allowances","21/06/2019"
"Wolverhampton City Council","http://opendatacommunities.org/id/metropolitan-district-council/wolverhampton","AMZNMktplace",24.15,"MASH","5999","Equipment - Purchase","21/06/2019"
"Wolverhampton City Council","http://opendatacommunities.org/id/metropolitan-district-council/wolverhampton","Wix.com",93.13,"Technical Support","5817","Computing - Purchase of Software","21/06/2019"
"Wolverhampton City Council","http://opendatacommunities.org/id/metropolitan-district-council/wolverhampton","BRUTONS PHARMACY",1.72,"Bradley Resource Centre","5912","Medical Fees","21/06/2019"
"Wolverhampton City Council","http://opendatacommunities.org/id/metropolitan-district-council/wolverhampton","AMZNMktplace",1.6,"Education Catering - General Overheads","5999","Equipment - R & M","21/06/2019"
"Wolverhampton City Council","http://opendatacommunities.org/id/metropolitan-district-council/wolverhampton","WWW.LOCAL.GOV.UK",545,"Central Training","7399","Training Expenses","21/06/2019"
"Wolverhampton City Council","http://opendatacommunities.org/id/metropolitan-district-council/wolverhampton","WWW.THINKTANK.COM",3.33,"LAC Transitions Team","7991","Client Allowances","21/06/2019"
"Wolverhampton City Council","http://opendatacommunities.org/id/metropolitan-district-council/wolverhampton","Amazon.co.uk M60YC5G64",55.12,"EIP Locality 7","5969","Grant Payments","21/06/2019"
"Wolverhampton City Council","http://opendatacommunities.org/id/metropolitan-district-council/wolverhampton","AMZNMktplace",23.48,"Safeguarding Partnership Board","5999","Equipment - Purchase","21/06/2019"
"Wolverhampton City Council","http://opendatacommunities.org/id/metropolitan-district-council/wolverhampton","Virgin Trains",71.9,"Members Expenses","4112","Public Transport","21/06/2019"
"Wolverhampton City Council","http://opendatacommunities.org/id/metropolitan-district-council/wolverhampton","Trainline.com",-67,"Revenues","4112","Public Transport","20/06/2019"
"Wolverhampton City Council","http://opendatacommunities.org/id/metropolitan-district-council/wolverhampton","ARGOS WOLVERHAMPTON",59.99,"Key to Inspiration","5310","Equipment - Purchase","20/06/2019"
"Wolverhampton City Council","http://opendatacommunities.org/id/metropolitan-district-council/wolverhampton","ASDA SUPERSTORE",62.2,"Key to Inspiration","5411","Provisions (Not for resale)","20/06/2019"
"Wolverhampton City Council","http://opendatacommunities.org/id/metropolitan-district-council/wolverhampton","HOME BARGAINS WOLVERHAMPTON",31.53,"Key to Inspiration","5251","Equipment - Purchase","20/06/2019"
"Wolverhampton City Council","http://opendatacommunities.org/id/metropolitan-district-council/wolverhampton","SAFETOTS",8.25,"Wildlife Photographer","5641","Equipment - Purchase","20/06/2019"
"Wolverhampton City Council","http://opendatacommunities.org/id/metropolitan-district-council/wolverhampton","WM MORRISON FOOD.COM",41.95,"Discretionary Fund","5411","Materials","20/06/2019"
"Wolverhampton City Council","http://opendatacommunities.org/id/metropolitan-district-council/wolverhampton","B&M RETAIL",16.99,"LAC Transitions Team","5310","Equipment - Purchase","20/06/2019"
"Wolverhampton City Council","http://opendatacommunities.org/id/metropolitan-district-council/wolverhampton","BEATSABAR MUSIC PROJECT",126.64,"Youth Offending Team","5733","Equipment - Purchase","20/06/2019"
"Wolverhampton City Council","http://opendatacommunities.org/id/metropolitan-district-council/wolverhampton","BEATSABAR MUSIC PROJECT",126.64,"Youth Offending Team","5733","Equipment - Purchase","20/06/2019"
"Wolverhampton City Council","http://opendatacommunities.org/id/metropolitan-district-council/wolverhampton","GREGGS PLC",1.75,"Youth Offending Team","5812","Educ Trips, Holidays, Outings, Activity","20/06/2019"
"Wolverhampton City Council","http://opendatacommunities.org/id/metropolitan-district-council/wolverhampton","ASDA GROCERIES ONLINE",5,"Bradley Resource Centre","5411","Provisions (Not for resale)","20/06/2019"
"Wolverhampton City Council","http://opendatacommunities.org/id/metropolitan-district-council/wolverhampton","Trainline",26.58,"LAC Transitions Team","4112","Client Allowances","20/06/2019"
"Wolverhampton City Council","http://opendatacommunities.org/id/metropolitan-district-council/wolverhampton","WOLVERHAMPTON CC",4,"Towers Outdoor Education Centre","7523","Equipment - Purchase","20/06/2019"
"Wolverhampton City Council","http://opendatacommunities.org/id/metropolitan-district-council/wolverhampton","WEST COAST TRAINS",3.58,"Economic Development","4112","Public Transport","20/06/2019"
"Wolverhampton City Council","http://opendatacommunities.org/id/metropolitan-district-council/wolverhampton","Central Taxis Limited",-11.9,"LAC Education Team (LACE)","4121","Client Transport","20/06/2019"
"Wolverhampton City Council","http://opendatacommunities.org/id/metropolitan-district-council/wolverhampton","Central Taxis Limited",9.1,"LAC Education Team (LACE)","4121","Client Transport","20/06/2019"
"Wolverhampton City Council","http://opendatacommunities.org/id/metropolitan-district-council/wolverhampton","Central Taxis Limited",23,"LAC Education Team (LACE)","4121","Client Transport","20/06/2019"
"Wolverhampton City Council","http://opendatacommunities.org/id/metropolitan-district-council/wolverhampton","Central Taxis Limited",11.2,"LAC Education Team (LACE)","4121","Client Transport","20/06/2019"
"Wolverhampton City Council","http://opendatacommunities.org/id/metropolitan-district-council/wolverhampton","Central Taxis Limited",23,"LAC Education Team (LACE)","4121","Client Transport","20/06/2019"
"Wolverhampton City Council","http://opendatacommunities.org/id/metropolitan-district-council/wolverhampton","Central Taxis Limited",23,"LAC Education Team (LACE)","4121","Client Transport","20/06/2019"
"Wolverhampton City Council","http://opendatacommunities.org/id/metropolitan-district-council/wolverhampton","WEST COAST TRAINS",26.9,"LAC Transitions Team","4112","Public Transport","20/06/2019"
"Wolverhampton City Council","http://opendatacommunities.org/id/metropolitan-district-council/wolverhampton","ARGOS LTD",9.16,"Cemeteries","5310","Equipment - Purchase","20/06/2019"
"Wolverhampton City Council","http://opendatacommunities.org/id/metropolitan-district-council/wolverhampton","ARGOS LTD",9.16,"Cemeteries","5310","Equipment - Purchase","20/06/2019"
"Wolverhampton City Council","http://opendatacommunities.org/id/metropolitan-district-council/wolverhampton","ASDA SUPERSTORE",14.99,"Starting and Developing Well(0-24 group)","5411","Catering","20/06/2019"
"Wolverhampton City Council","http://opendatacommunities.org/id/metropolitan-district-council/wolverhampton","WWW.ARGOS.CO.UK",222.92,"LAC Transitions Team","5310","Equipment - Purchase","20/06/2019"
"Wolverhampton City Council","http://opendatacommunities.org/id/metropolitan-district-council/wolverhampton","HM PASSPORT OFFICE",58.5,"LAC Team","9399","Services - Fees and Charges","20/06/2019"
"Wolverhampton City Council","http://opendatacommunities.org/id/metropolitan-district-council/wolverhampton","Central Taxis Limited",12.8,"Looked After Team 2","4121","Client Transport","20/06/2019"
"Wolverhampton City Council","http://opendatacommunities.org/id/metropolitan-district-council/wolverhampton","Central Taxis Limited",12.8,"Looked After Team 2","4121","Client Transport","20/06/2019"
"Wolverhampton City Council","http://opendatacommunities.org/id/metropolitan-district-council/wolverhampton","WWW.WMCA.CO.UK",44,"Central Costs","9399","Public Transport","20/06/2019"
"Wolverhampton City Council","http://opendatacommunities.org/id/metropolitan-district-council/wolverhampton","COSTA COFFEE 43043885",20,"Central Costs","5814","Educ Trips, Holidays, Outings, Activity","20/06/2019"
"Wolverhampton City Council","http://opendatacommunities.org/id/metropolitan-district-council/wolverhampton","AMZNMktplace",11.58,"Safeguarding Partnership Board","5999","Equipment - Purchase","20/06/2019"
"Wolverhampton City Council","http://opendatacommunities.org/id/metropolitan-district-council/wolverhampton","AMZNMKTPLACE AMAZON.COM",32.92,"LAC Transitions Team","5999","Client Allowances","20/06/2019"
"Wolverhampton City Council","http://opendatacommunities.org/id/metropolitan-district-council/wolverhampton","SEVERN TRENT WATER",52.52,"LAC Transitions Team","4900","Client Allowances","20/06/2019"
"Wolverhampton City Council","http://opendatacommunities.org/id/metropolitan-district-council/wolverhampton","W HAMPTON1797",29.98,"Culwell Street Depot","5211","Equipment - Purchase","20/06/2019"
"Wolverhampton City Council","http://opendatacommunities.org/id/metropolitan-district-council/wolverhampton","FINESSE CARPETS LTD",350,"EIP Locality 1","5713","Grant Payments","20/06/2019"
"Wolverhampton City Council","http://opendatacommunities.org/id/metropolitan-district-council/wolverhampton","CURRYS S/S",12.99,"Transportation General","5732","Equipment - Purchase","20/06/2019"
"Wolverhampton City Council","http://opendatacommunities.org/id/metropolitan-district-council/wolverhampton","123 REG R/T",9.99,"Technical Support","5968","Subscriptions","20/06/2019"
"Wolverhampton City Council","http://opendatacommunities.org/id/metropolitan-district-council/wolverhampton","Wix.com",93.13,"Technical Support","5817","Computing - Purchase of Software","20/06/2019"
"Wolverhampton City Council","http://opendatacommunities.org/id/metropolitan-district-council/wolverhampton","PAYPAL  PRINTEDMUGS",224.25,"Technical Support","2741","Publications","20/06/2019"
"Wolverhampton City Council","http://opendatacommunities.org/id/metropolitan-district-council/wolverhampton","DECATHLON UK",26.62,"Community Enablement","5941","Protective Clothing","20/06/2019"
"Wolverhampton City Council","http://opendatacommunities.org/id/metropolitan-district-council/wolverhampton","CITY OF WOLVERHAMPTON",27,"CIN/CP Social Work Unit - Area 5","9399","Section 17","20/06/2019"
"Wolverhampton City Council","http://opendatacommunities.org/id/metropolitan-district-council/wolverhampton","eSky.pl S.A.",464.93,"CIN/CP Social Work Unit - Area 5","4722","Section 17","20/06/2019"
"Wolverhampton City Council","http://opendatacommunities.org/id/metropolitan-district-council/wolverhampton","WWW.ICO.GOV.UK",40,"Members Expenses","9399","Subscriptions","20/06/2019"
"Wolverhampton City Council","http://opendatacommunities.org/id/metropolitan-district-council/wolverhampton","WWW.ICO.GOV.UK",40,"Members Expenses","9399","Subscriptions","20/06/2019"
"Wolverhampton City Council","http://opendatacommunities.org/id/metropolitan-district-council/wolverhampton","WWW.ICO.GOV.UK",40,"Members Expenses","9399","Services - Fees and Charges","20/06/2019"
"Wolverhampton City Council","http://opendatacommunities.org/id/metropolitan-district-council/wolverhampton","WWW.ICO.GOV.UK",40,"Members Expenses","9399","Subscriptions","20/06/2019"
"Wolverhampton City Council","http://opendatacommunities.org/id/metropolitan-district-council/wolverhampton","WWW.ICO.GOV.UK",40,"Members Expenses","9399","Subscriptions","20/06/2019"
"Wolverhampton City Council","http://opendatacommunities.org/id/metropolitan-district-council/wolverhampton","WWW.ICO.GOV.UK",40,"Members Expenses","9399","Subscriptions","20/06/2019"
"Wolverhampton City Council","http://opendatacommunities.org/id/metropolitan-district-council/wolverhampton","SAINSBURYS SACAT (2340",8.7,"Key to Inspiration","5411","Provisions (Not for resale)","19/06/2019"
"Wolverhampton City Council","http://opendatacommunities.org/id/metropolitan-district-council/wolverhampton","ASDA GROCERIES ONLINE",-0.06,"Bradley Resource Centre","5411","Provisions (Not for resale)","19/06/2019"
"Wolverhampton City Council","http://opendatacommunities.org/id/metropolitan-district-council/wolverhampton","ASDA GROCERIES ONLINE",156.38,"Bradley Resource Centre","5411","Provisions (Not for resale)","19/06/2019"
"Wolverhampton City Council","http://opendatacommunities.org/id/metropolitan-district-council/wolverhampton","TVLICENSING.CO.UK",154.5,"LAC Transitions Team","7392","Services - Consultants","19/06/2019"
"Wolverhampton City Council","http://opendatacommunities.org/id/metropolitan-district-council/wolverhampton","GRANTS ONLINE",99,"LEP - Leadership & Management Programme","5968","Subscriptions","19/06/2019"
"Wolverhampton City Council","http://opendatacommunities.org/id/metropolitan-district-council/wolverhampton","Virgin Trains",184,"Private Hire Vehicles","4112","Public Transport","19/06/2019"
"Wolverhampton City Council","http://opendatacommunities.org/id/metropolitan-district-council/wolverhampton","TESCO STORES 5194",-6.45,"Towers Outdoor Education Centre","5411","Provisions (Not for resale)","19/06/2019"
"Wolverhampton City Council","http://opendatacommunities.org/id/metropolitan-district-council/wolverhampton","TESCO STORES 5194",291.81,"Towers Outdoor Education Centre","5411","Provisions (Not for resale)","19/06/2019"
"Wolverhampton City Council","http://opendatacommunities.org/id/metropolitan-district-council/wolverhampton","CUMMINGS BROTHERS LOCK",7,"Aldersley Leisure Village","7399","Equipment - Purchase","19/06/2019"
"Wolverhampton City Council","http://opendatacommunities.org/id/metropolitan-district-council/wolverhampton","WWW.CARESHOP.CO.UK",101.33,"Ernest Bold Court","5999","R4007","19/06/2019"
"Wolverhampton City Council","http://opendatacommunities.org/id/metropolitan-district-council/wolverhampton","MARKS&SPENCER PLC SACA",3.87,"Mayoral Expenses","5411","Hospitality","19/06/2019"
"Wolverhampton City Council","http://opendatacommunities.org/id/metropolitan-district-council/wolverhampton","Trainline",82.42,"Business Support Services","4112","Public Transport","19/06/2019"
"Wolverhampton City Council","http://opendatacommunities.org/id/metropolitan-district-council/wolverhampton","NAMESCO",28.97,"Communications & Marketing - General","4816","Computing - Purchase of Software","19/06/2019"
"Wolverhampton City Council","http://opendatacommunities.org/id/metropolitan-district-council/wolverhampton","Trainline",55.45,"LAC Education Team (LACE)","4112","Public Transport","19/06/2019"
"Wolverhampton City Council","http://opendatacommunities.org/id/metropolitan-district-council/wolverhampton","TVLICENSING.CO.UK",154.5,"Youth Offending Team","7392","Services - General Licences","19/06/2019"
"Wolverhampton City Council","http://opendatacommunities.org/id/metropolitan-district-council/wolverhampton","ASDA STORE 4351",219,"LAC Transitions Team","5411","Provisions (Not for resale)","19/06/2019"
"Wolverhampton City Council","http://opendatacommunities.org/id/metropolitan-district-council/wolverhampton","Trainline",38.26,"LAC Transitions Team","4112","Client Allowances","19/06/2019"
"Wolverhampton City Council","http://opendatacommunities.org/id/metropolitan-district-council/wolverhampton","ASDA GROCERIES ONLINE",-0.29,"Upper Pendeford Farm Childrens Home","5411","Provisions (Not for resale)","19/06/2019"
"Wolverhampton City Council","http://opendatacommunities.org/id/metropolitan-district-council/wolverhampton","ASDA GROCERIES ONLINE",214.01,"Upper Pendeford Farm Childrens Home","5411","Provisions (Not for resale)","19/06/2019"
"Wolverhampton City Council","http://opendatacommunities.org/id/metropolitan-district-council/wolverhampton","POST OFFICE COUNTER",8.7,"Looked After Team 2","9402","Comms - Postage","19/06/2019"
"Wolverhampton City Council","http://opendatacommunities.org/id/metropolitan-district-council/wolverhampton","Amazon.co.uk M66W71PG4",13.91,"Children & Young People Support Costs","5969","Equipment - Purchase","19/06/2019"
"Wolverhampton City Council","http://opendatacommunities.org/id/metropolitan-district-council/wolverhampton","Amazon.co.uk M64PN51Y4",13.91,"Children & Young People Support Costs","5969","Equipment - Purchase","19/06/2019"
"Wolverhampton City Council","http://opendatacommunities.org/id/metropolitan-district-council/wolverhampton","Amazon.co.uk M63PO71N4",13.91,"Children & Young People Support Costs","5969","Equipment - Purchase","19/06/2019"
"Wolverhampton City Council","http://opendatacommunities.org/id/metropolitan-district-council/wolverhampton","Amazon.co.uk M62PF31S4",13.91,"Children & Young People Support Costs","5969","Equipment - Purchase","19/06/2019"
"Wolverhampton City Council","http://opendatacommunities.org/id/metropolitan-district-council/wolverhampton","TVLICENSING.CO.UK",154.5,"LAC Transitions Team","7392","Client Allowances","19/06/2019"
"Wolverhampton City Council","http://opendatacommunities.org/id/metropolitan-district-council/wolverhampton","CARVER/WOLVERHAMPTON/L",6.84,"Culwell Street Depot","5211","Materials","19/06/2019"
"Wolverhampton City Council","http://opendatacommunities.org/id/metropolitan-district-council/wolverhampton","AMZNMktplace",4.29,"Global Budgets","5999","Books","19/06/2019"
"Wolverhampton City Council","http://opendatacommunities.org/id/metropolitan-district-council/wolverhampton","Virgin Trains",26.8,"City Centre","4112","Services - Fees and Charges","19/06/2019"
"Wolverhampton City Council","http://opendatacommunities.org/id/metropolitan-district-council/wolverhampton","AMZNMktplace",18.72,"Community Enablement","5999","Equipment - Purchase","19/06/2019"
"Wolverhampton City Council","http://opendatacommunities.org/id/metropolitan-district-council/wolverhampton","THE BIKEABILITY TRUST",1433.3,"Road Safety","5111","Equipment - Purchase","19/06/2019"
"Wolverhampton City Council","http://opendatacommunities.org/id/metropolitan-district-council/wolverhampton","Trainline",42.23,"SEN Early Years Team","4112","Public Transport","19/06/2019"
"Wolverhampton City Council","http://opendatacommunities.org/id/metropolitan-district-council/wolverhampton","ROYAL BK OF SCOTLAND",100,"EIP Locality 7","6011","Grant Payments","19/06/2019"
"Wolverhampton City Council","http://opendatacommunities.org/id/metropolitan-district-council/wolverhampton","WWW.BRISTOWSUTOR.C",0,"Revenues","9399","Services - Fees and Charges","18/06/2019"
"Wolverhampton City Council","http://opendatacommunities.org/id/metropolitan-district-council/wolverhampton","ASDA GROCERIES ONLINE",85.55,"Bradley Resource Centre","5411","Provisions (Not for resale)","18/06/2019"
"Wolverhampton City Council","http://opendatacommunities.org/id/metropolitan-district-council/wolverhampton","Trainline",-30.1,"Court Team","4112","Public Transport","18/06/2019"
"Wolverhampton City Council","http://opendatacommunities.org/id/metropolitan-district-council/wolverhampton","CUMMINGS BROTHERS LOCK",25,"Street Lighting Maintenance","7399","Equipment - Purchase","18/06/2019"
"Wolverhampton City Council","http://opendatacommunities.org/id/metropolitan-district-council/wolverhampton","SUBWAY",5.19,"Youth Offending Team","5812","Educ Trips, Holidays, Outings, Activity","18/06/2019"
"Wolverhampton City Council","http://opendatacommunities.org/id/metropolitan-district-council/wolverhampton","ASDA GROCERIES ONLINE",0.4,"Ernest Bold Court","5411","Provisions (Not for resale)","18/06/2019"
"Wolverhampton City Council","http://opendatacommunities.org/id/metropolitan-district-council/wolverhampton","ASDA GROCERIES ONLINE",52.58,"Ernest Bold Court","5411","Provisions (Not for resale)","18/06/2019"
"Wolverhampton City Council","http://opendatacommunities.org/id/metropolitan-district-council/wolverhampton","PAYPAL  JUSTINHANCO",88,"Youth Offending Team","8220","Books","18/06/2019"
"Wolverhampton City Council","http://opendatacommunities.org/id/metropolitan-district-council/wolverhampton","Virgin Trains",29.35,"Looked After Team 2","4112","Public Transport","18/06/2019"
"Wolverhampton City Council","http://opendatacommunities.org/id/metropolitan-district-council/wolverhampton","Amazon.co.uk M69KM80U4",681.51,"Children & Young People Support Costs","5969","Equipment - Purchase","18/06/2019"
"Wolverhampton City Council","http://opendatacommunities.org/id/metropolitan-district-council/wolverhampton","Amazon.co.uk M68FW6144",476.77,"Children & Young People Support Costs","5969","Equipment - Purchase","18/06/2019"
"Wolverhampton City Council","http://opendatacommunities.org/id/metropolitan-district-council/wolverhampton","Amazon.co.uk M672J50D4",378.83,"Children & Young People Support Costs","5969","Equipment - Purchase","18/06/2019"
"Wolverhampton City Council","http://opendatacommunities.org/id/metropolitan-district-council/wolverhampton","Amazon.co.uk M66977014",61.12,"Children & Young People Support Costs","5969","Equipment - Purchase","18/06/2019"
"Wolverhampton City Council","http://opendatacommunities.org/id/metropolitan-district-council/wolverhampton","Amazon.co.uk M65KW10G4",542.42,"Children & Young People Support Costs","5969","Equipment - Purchase","18/06/2019"
"Wolverhampton City Council","http://opendatacommunities.org/id/metropolitan-district-council/wolverhampton","Amazon.co.uk M635C31X4",146.7,"Children & Young People Support Costs","5969","Equipment - Purchase","18/06/2019"
"Wolverhampton City Council","http://opendatacommunities.org/id/metropolitan-district-council/wolverhampton","Amazon.co.uk M628450D4",238.33,"Children & Young People Support Costs","5969","Equipment - Purchase","18/06/2019"
"Wolverhampton City Council","http://opendatacommunities.org/id/metropolitan-district-council/wolverhampton","Amazon.co.uk M615R01Q4",214.5,"Children & Young People Support Costs","5969","Equipment - Purchase","18/06/2019"
"Wolverhampton City Council","http://opendatacommunities.org/id/metropolitan-district-council/wolverhampton","Amazon.co.uk M62VF70Y4",303.29,"Children & Young People Support Costs","5969","Equipment - Purchase","18/06/2019"
"Wolverhampton City Council","http://opendatacommunities.org/id/metropolitan-district-council/wolverhampton","Amazon.co.uk M690940U4",238.33,"Children & Young People Support Costs","5969","Equipment - Purchase","18/06/2019"
"Wolverhampton City Council","http://opendatacommunities.org/id/metropolitan-district-council/wolverhampton","Amazon.co.uk M659Q00D4",73.35,"Children & Young People Support Costs","5969","Equipment - Purchase","18/06/2019"
"Wolverhampton City Council","http://opendatacommunities.org/id/metropolitan-district-council/wolverhampton","Amazon.co.uk M65JZ40S4",476.77,"Children & Young People Support Costs","5969","Equipment - Purchase","18/06/2019"
"Wolverhampton City Council","http://opendatacommunities.org/id/metropolitan-district-council/wolverhampton","Amazon.co.uk M609N3014",476.77,"Children & Young People Support Costs","5969","Equipment - Purchase","18/06/2019"
"Wolverhampton City Council","http://opendatacommunities.org/id/metropolitan-district-council/wolverhampton","Amazon.co.uk M60BC20Z4",695.42,"Children & Young People Support Costs","5969","Equipment - Purchase","18/06/2019"
"Wolverhampton City Council","http://opendatacommunities.org/id/metropolitan-district-council/wolverhampton","ASDA GROCERIES ONLINE",32.42,"Central Costs","5411","Provisions (Not for resale)","18/06/2019"
"Wolverhampton City Council","http://opendatacommunities.org/id/metropolitan-district-council/wolverhampton","JOHNSONS",12,"Central Costs","7210","Laundry Expenses","18/06/2019"
"Wolverhampton City Council","http://opendatacommunities.org/id/metropolitan-district-council/wolverhampton","WWW.WOLVERHAMPTON.GOV.UK",68.45,"LAC Transitions Team","9399","Client Allowances","18/06/2019"
"Wolverhampton City Council","http://opendatacommunities.org/id/metropolitan-district-council/wolverhampton","IZ  D & K TRADING (MID",125.6,"Wolverhampton Indoor and Open Market","5999","Equipment - Purchase","18/06/2019"
"Wolverhampton City Council","http://opendatacommunities.org/id/metropolitan-district-council/wolverhampton","YOUNG`S SHOE REPAIRS L",53,"Bilston Market & Licensed Operations","7251","Fixtures and Fittings - R&M","18/06/2019"
"Wolverhampton City Council","http://opendatacommunities.org/id/metropolitan-district-council/wolverhampton","PO WILLENHALL RD 5497",10,"EIP Locality 3","6011","Grant Payments","18/06/2019"
"Wolverhampton City Council","http://opendatacommunities.org/id/metropolitan-district-council/wolverhampton","AMZN Mktp UK M679E90U4",13.3,"Global Budgets","5942","Books","18/06/2019"
"Wolverhampton City Council","http://opendatacommunities.org/id/metropolitan-district-council/wolverhampton","B & Q 1243",7.97,"Bradley Resource Centre","5211","Equipment - R & M","18/06/2019"
"Wolverhampton City Council","http://opendatacommunities.org/id/metropolitan-district-council/wolverhampton","B & Q 1243",5.95,"Bradley Resource Centre","5211","Equipment - R & M","18/06/2019"
"Wolverhampton City Council","http://opendatacommunities.org/id/metropolitan-district-council/wolverhampton","B & Q 1243",9.17,"Bradley Resource Centre","5211","Equipment - R & M","18/06/2019"
"Wolverhampton City Council","http://opendatacommunities.org/id/metropolitan-district-council/wolverhampton","BCC REGISTER OFFICE",13.5,"Looked After Team 2","9399","Financial Assistance In Exceptional Circ","18/06/2019"
"Wolverhampton City Council","http://opendatacommunities.org/id/metropolitan-district-council/wolverhampton","Virgin Trains",100.9,"Members Expenses","4112","Public Transport","18/06/2019"
"Wolverhampton City Council","http://opendatacommunities.org/id/metropolitan-district-council/wolverhampton","Trainline",124.75,"Members Expenses","4112","Public Transport","18/06/2019"
"Wolverhampton City Council","http://opendatacommunities.org/id/metropolitan-district-council/wolverhampton","Virgin Trains",76,"Travelwise","4112","Public Transport","18/06/2019"
"Wolverhampton City Council","http://opendatacommunities.org/id/metropolitan-district-council/wolverhampton","SAINSBURYS SACAT (2340",13.37,"Road Safety","5411","Provisions (Not for resale)","18/06/2019"
"Wolverhampton City Council","http://opendatacommunities.org/id/metropolitan-district-council/wolverhampton","Amazon.co.uk M61772E14",44.57,"Blakenhall Commty & Healthy Living Ctr","5969","Equipment - Purchase","17/06/2019"
"Wolverhampton City Council","http://opendatacommunities.org/id/metropolitan-district-council/wolverhampton","123 REG R/T",9.99,"Technical Support","5968","Subscriptions","17/06/2019"
"Wolverhampton City Council","http://opendatacommunities.org/id/metropolitan-district-council/wolverhampton","Wix.com",93.13,"Education Data Services","5817","Computing - Purchase of Software","17/06/2019"
"Wolverhampton City Council","http://opendatacommunities.org/id/metropolitan-district-council/wolverhampton","Amazon.co.uk M67NZ4AT4",5.99,"Global Budgets","5969","Books","17/06/2019"
"Wolverhampton City Council","http://opendatacommunities.org/id/metropolitan-district-council/wolverhampton","FS160 CLAREGATE",6.57,"Specialist Support Service - North","5541","Equipment - R & M","17/06/2019"
"Wolverhampton City Council","http://opendatacommunities.org/id/metropolitan-district-council/wolverhampton","HM PASSPORT OFFICE",58.5,"Looked After Team 2","9399","Financial Assistance In Exceptional Circ","17/06/2019"
"Wolverhampton City Council","http://opendatacommunities.org/id/metropolitan-district-council/wolverhampton","SAINSBURYS (2340)",25.05,"Head of Service - CINCP","5411","Provisions (Not for resale)","17/06/2019"
"Wolverhampton City Council","http://opendatacommunities.org/id/metropolitan-district-council/wolverhampton","AMZNMKTPLACE AMAZON.CO.UK",4.99,"Civic Centre Catering","5999","Equipment - Purchase","17/06/2019"
"Wolverhampton City Council","http://opendatacommunities.org/id/metropolitan-district-council/wolverhampton","EB  CONVEYANCING LAW U",243.63,"Central Training","7399","Training Expenses","17/06/2019"
"Wolverhampton City Council","http://opendatacommunities.org/id/metropolitan-district-council/wolverhampton","Amazon.co.uk M64XE4E94",17.5,"Fleet Management","5969","Equipment - Purchase","17/06/2019"
"Wolverhampton City Council","http://opendatacommunities.org/id/metropolitan-district-council/wolverhampton","ARGOS RETAIL GROUP",15,"CIN/CP Social Work Unit - Area 4","5310","Section 17","17/06/2019"
"Wolverhampton City Council","http://opendatacommunities.org/id/metropolitan-district-council/wolverhampton","ROOKERY Sainsburys Ba",200,"Duke Street Bungalows","6011","Provisions (Not for resale)","17/06/2019"
"Wolverhampton City Council","http://opendatacommunities.org/id/metropolitan-district-council/wolverhampton","SAINSBURYS SACAT 2040",10,"Duke Street Bungalows","5411","Provisions (Not for resale)","17/06/2019"
"Wolverhampton City Council","http://opendatacommunities.org/id/metropolitan-district-council/wolverhampton","Virgin Trains",376.4,"Members Expenses","4112","Public Transport","17/06/2019"
"Wolverhampton City Council","http://opendatacommunities.org/id/metropolitan-district-council/wolverhampton","THE RANGE",82.73,"Key to Inspiration","5311","Equipment - Purchase","17/06/2019"
"Wolverhampton City Council","http://opendatacommunities.org/id/metropolitan-district-council/wolverhampton","ARGOS WOLVERHAMPTON",32.47,"Key to Inspiration","5310","Equipment - Purchase","17/06/2019"
"Wolverhampton City Council","http://opendatacommunities.org/id/metropolitan-district-council/wolverhampton","AMZNMktplace",21.04,"Key to Inspiration","5999","Equipment - Purchase","17/06/2019"
"Wolverhampton City Council","http://opendatacommunities.org/id/metropolitan-district-council/wolverhampton","WWW.ICELAND.CO.UK",90.8,"Bradley Resource Centre","5411","Provisions (Not for resale)","17/06/2019"
"Wolverhampton City Council","http://opendatacommunities.org/id/metropolitan-district-council/wolverhampton","ASDA GROCERIES ONLINE",41.82,"Bradley Resource Centre","5411","Provisions (Not for resale)","17/06/2019"
"Wolverhampton City Council","http://opendatacommunities.org/id/metropolitan-district-council/wolverhampton","WOLVERHAMPTON T/O",9.2,"IMPACT","4112","Public Transport","17/06/2019"
"Wolverhampton City Council","http://opendatacommunities.org/id/metropolitan-district-council/wolverhampton","SCREWFIX STAFFORD",-43.17,"Technician","5211","Materials","17/06/2019"
"Wolverhampton City Council","http://opendatacommunities.org/id/metropolitan-district-council/wolverhampton","PREMIER INN",82.5,"Regional Adoption Agency","3811","Services - Supplies & Services to users","17/06/2019"
"Wolverhampton City Council","http://opendatacommunities.org/id/metropolitan-district-council/wolverhampton","SAFETOTS",-6.95,"Technician","5641","Equipment - Purchase","17/06/2019"
"Wolverhampton City Council","http://opendatacommunities.org/id/metropolitan-district-council/wolverhampton","AMZNMktplace",10.82,"School Standards Training & Safeguard","5999","Equipment - Purchase","17/06/2019"
"Wolverhampton City Council","http://opendatacommunities.org/id/metropolitan-district-council/wolverhampton","CardtronicsUK",50.95,"Private Hire Vehicles","6011","Financial Assistance In Exceptional Circ","17/06/2019"
"Wolverhampton City Council","http://opendatacommunities.org/id/metropolitan-district-council/wolverhampton","WWW.BRISTOWSUTOR.C",0,"Revenues","9399","R9382","17/06/2019"
"Wolverhampton City Council","http://opendatacommunities.org/id/metropolitan-district-council/wolverhampton","WWW.BRISTOWSUTOR.C",0,"Revenues","9399","R9382","17/06/2019"
"Wolverhampton City Council","http://opendatacommunities.org/id/metropolitan-district-council/wolverhampton","WWW.BRISTOWSUTOR.C",0,"Revenues","9399","R9382","17/06/2019"
"Wolverhampton City Council","http://opendatacommunities.org/id/metropolitan-district-council/wolverhampton","GREGGS",2,"Youth Offending Team","5812","Educ Trips, Holidays, Outings, Activity","17/06/2019"
"Wolverhampton City Council","http://opendatacommunities.org/id/metropolitan-district-council/wolverhampton","000002200500000",100,"Childrens with Disabilities Team","6011","Financial Assistance In Exceptional Circ","17/06/2019"
"Wolverhampton City Council","http://opendatacommunities.org/id/metropolitan-district-council/wolverhampton","ARGOS WOLVERHAMPTON",249.99,"LAC Transitions Team","5310","Client Allowances","17/06/2019"
"Wolverhampton City Council","http://opendatacommunities.org/id/metropolitan-district-council/wolverhampton","AMZNMktplace",6.44,"Regional Adoption Agency","5999","Equipment - Purchase","17/06/2019"
"Wolverhampton City Council","http://opendatacommunities.org/id/metropolitan-district-council/wolverhampton","AMZNMktplace",17.16,"Regional Adoption Agency","5999","Equipment - Purchase","17/06/2019"
"Wolverhampton City Council","http://opendatacommunities.org/id/metropolitan-district-council/wolverhampton","Virgin Trains",39.6,"LAC Team","4112","Public Transport","17/06/2019"
"Wolverhampton City Council","http://opendatacommunities.org/id/metropolitan-district-council/wolverhampton","PREMIER INN",303,"Regional Adoption Agency","3811","Services - Supplies & Services to users","17/06/2019"
"Wolverhampton City Council","http://opendatacommunities.org/id/metropolitan-district-council/wolverhampton","POST OFFICE COUNTER",190,"Regional Adoption Agency","9402","Comms - Postage","17/06/2019"
"Wolverhampton City Council","http://opendatacommunities.org/id/metropolitan-district-council/wolverhampton","AMZNMKTPLACE AMAZON.CO.UK",5.12,"Towers Outdoor Education Centre","5999","Fixtures and Fittings - Purchases","17/06/2019"
"Wolverhampton City Council","http://opendatacommunities.org/id/metropolitan-district-council/wolverhampton","AMZNMKTPLACE AMAZON.CO.UK",16.63,"Towers Outdoor Education Centre","5999","Equipment - Purchase","17/06/2019"
"Wolverhampton City Council","http://opendatacommunities.org/id/metropolitan-district-council/wolverhampton","Amazon.co.uk M62WE6AM4",24.17,"Towers Outdoor Education Centre","5969","Equipment - Purchase","17/06/2019"
"Wolverhampton City Council","http://opendatacommunities.org/id/metropolitan-district-council/wolverhampton","HALFORDS 0775",27,"Mayoral Expenses","5940","Materials","17/06/2019"
"Wolverhampton City Council","http://opendatacommunities.org/id/metropolitan-district-council/wolverhampton","SAINSBURYS PFS (1340)",1.67,"Mayoral Expenses","5541","Vehicle Maintenance - Repairs","17/06/2019"
"Wolverhampton City Council","http://opendatacommunities.org/id/metropolitan-district-council/wolverhampton","WISEPOPS",87.33,"Communications & Marketing - General","7372","Computing - Purchase of Software","17/06/2019"
"Wolverhampton City Council","http://opendatacommunities.org/id/metropolitan-district-council/wolverhampton","ITUNES.COM/BILL",2.07,"Corporate Parenting","5735","Computing - Purchase of Software","17/06/2019"
"Wolverhampton City Council","http://opendatacommunities.org/id/metropolitan-district-council/wolverhampton","HMCOURTS-SERVICE.G",20,"LAC Transitions Team","9222","Client Allowances","17/06/2019"
"Wolverhampton City Council","http://opendatacommunities.org/id/metropolitan-district-council/wolverhampton","ASDA  STORES 5011",32.91,"Youth Offending Team","5411","Provisions (Not for resale)","17/06/2019"
"Wolverhampton City Council","http://opendatacommunities.org/id/metropolitan-district-council/wolverhampton","POST OFFICE COUNTER",11,"LAC Team","9402","Comms - Postage","17/06/2019"
"Wolverhampton City Council","http://opendatacommunities.org/id/metropolitan-district-council/wolverhampton","AMZNMktplace",33.92,"Strategic ICTS (ICT Serv Budget)","5999","Equipment - Purchase","17/06/2019"
"Wolverhampton City Council","http://opendatacommunities.org/id/metropolitan-district-council/wolverhampton","Amazon.co.uk M62578AF4",9.76,"Strategic ICTS (ICT Serv Budget)","5969","Equipment - Purchase","17/06/2019"
"Wolverhampton City Council","http://opendatacommunities.org/id/metropolitan-district-council/wolverhampton","AMZNMktplace",96,"Strategic ICTS (ICT Serv Budget)","5999","Equipment - Purchase","17/06/2019"
"Wolverhampton City Council","http://opendatacommunities.org/id/metropolitan-district-council/wolverhampton","NATIONAL EXPRESS LIMIT",32.1,"Intensive Family Support Team","4131","Public Transport","17/06/2019"
"Wolverhampton City Council","http://opendatacommunities.org/id/metropolitan-district-council/wolverhampton","NATIONAL EXPRESS LIMIT",32.1,"Intensive Family Support Team","4131","Public Transport","17/06/2019"
"Wolverhampton City Council","http://opendatacommunities.org/id/metropolitan-district-council/wolverhampton","ASDA GROCERIES ONLINE",5,"Upper Pendeford Farm Childrens Home","5411","Provisions (Not for resale)","17/06/2019"
"Wolverhampton City Council","http://opendatacommunities.org/id/metropolitan-district-council/wolverhampton","Trainline",49.76,"Art Gallery","4112","Public Transport","17/06/2019"
"Wolverhampton City Council","http://opendatacommunities.org/id/metropolitan-district-council/wolverhampton","B.com 4543837-IXUG4 Nu",92,"Art Gallery","7011","Services - Supplies & Services to users","17/06/2019"
"Wolverhampton City Council","http://opendatacommunities.org/id/metropolitan-district-council/wolverhampton","ARGOS RETAIL GROUP",12.99,"Wolverhampton Indoor and Open Market","5310","Equipment - Purchase","17/06/2019"
"Wolverhampton City Council","http://opendatacommunities.org/id/metropolitan-district-council/wolverhampton","ASDA GROCERIES ONLINE",159.39,"Duke Street Bungalows","5411","Provisions (Not for resale)","17/06/2019"
"Wolverhampton City Council","http://opendatacommunities.org/id/metropolitan-district-council/wolverhampton","WWW.ARGOS.CO.UK",58.95,"Duke Street Bungalows","5310","R4010","17/06/2019"
"Wolverhampton City Council","http://opendatacommunities.org/id/metropolitan-district-council/wolverhampton","POUNDSTRETCHER",1.98,"Children & Young People Support Costs","5331","Client Allowances","14/06/2019"
"Wolverhampton City Council","http://opendatacommunities.org/id/metropolitan-district-council/wolverhampton","B&M RETAIL",5.82,"LAC Transitions Team","5310","Client Allowances","14/06/2019"
"Wolverhampton City Council","http://opendatacommunities.org/id/metropolitan-district-council/wolverhampton","ARGOS WOLVERHAMPTO",163.97,"Key to Inspiration","5310","Equipment - Purchase","14/06/2019"
"Wolverhampton City Council","http://opendatacommunities.org/id/metropolitan-district-council/wolverhampton","AMZNMktplace",10.52,"Key to Inspiration","5999","Equipment - Purchase","14/06/2019"
"Wolverhampton City Council","http://opendatacommunities.org/id/metropolitan-district-council/wolverhampton","WWW.WMCA.CO.UK",56.5,"IMPACT","9399","Services - Fees and Charges","14/06/2019"
"Wolverhampton City Council","http://opendatacommunities.org/id/metropolitan-district-council/wolverhampton","THE RED HOUSE",29.98,"IMPACT","5691","Equipment - Purchase","14/06/2019"
"Wolverhampton City Council","http://opendatacommunities.org/id/metropolitan-district-council/wolverhampton","WWW.FIREPROOFSPRAY.CO.UK",49.45,"Key to Inspiration","5718","Equipment - Purchase","14/06/2019"
"Wolverhampton City Council","http://opendatacommunities.org/id/metropolitan-district-council/wolverhampton","CITY OF WOLVERHAMPTON",40,"Court Team","9399","Section 17","14/06/2019"
"Wolverhampton City Council","http://opendatacommunities.org/id/metropolitan-district-council/wolverhampton","Trainline",37.34,"Childrens with Disabilities Team","4112","Section 17","14/06/2019"
"Wolverhampton City Council","http://opendatacommunities.org/id/metropolitan-district-council/wolverhampton","B&M RETAIL",6.66,"LAC Transitions Team","5310","Client Allowances","14/06/2019"
"Wolverhampton City Council","http://opendatacommunities.org/id/metropolitan-district-council/wolverhampton","B&M RETAIL",14.16,"LAC Transitions Team","5310","Client Allowances","14/06/2019"
"Wolverhampton City Council","http://opendatacommunities.org/id/metropolitan-district-council/wolverhampton","B&M RETAIL",195.77,"LAC Transitions Team","5310","Client Allowances","14/06/2019"
"Wolverhampton City Council","http://opendatacommunities.org/id/metropolitan-district-council/wolverhampton","B&M RETAIL",97.41,"LAC Transitions Team","5310","Client Allowances","14/06/2019"
"Wolverhampton City Council","http://opendatacommunities.org/id/metropolitan-district-council/wolverhampton","B&M RETAIL",149.87,"LAC Transitions Team","5310","Client Allowances","14/06/2019"
"Wolverhampton City Council","http://opendatacommunities.org/id/metropolitan-district-council/wolverhampton","B&M RETAIL",3.32,"LAC Transitions Team","5310","Client Allowances","14/06/2019"
"Wolverhampton City Council","http://opendatacommunities.org/id/metropolitan-district-council/wolverhampton","AMZNMktplace",7.37,"Regional Adoption Agency","5999","Equipment - Purchase","14/06/2019"
"Wolverhampton City Council","http://opendatacommunities.org/id/metropolitan-district-council/wolverhampton","AMZNMktplace",46.8,"Regional Adoption Agency","5999","Equipment - Purchase","14/06/2019"
"Wolverhampton City Council","http://opendatacommunities.org/id/metropolitan-district-council/wolverhampton","AMZNMktplace",16.6,"Regional Adoption Agency","5999","Equipment - Purchase","14/06/2019"
"Wolverhampton City Council","http://opendatacommunities.org/id/metropolitan-district-council/wolverhampton","TESCO STORES 5194",8.8,"Towers Outdoor Education Centre","5411","Provisions (Not for resale)","14/06/2019"
"Wolverhampton City Council","http://opendatacommunities.org/id/metropolitan-district-council/wolverhampton","Central Taxis Limited",26,"B-Safe","4121","Client Transport","14/06/2019"
"Wolverhampton City Council","http://opendatacommunities.org/id/metropolitan-district-council/wolverhampton","Central Taxis Limited",7.8,"B-Safe","4121","Client Transport","14/06/2019"
"Wolverhampton City Council","http://opendatacommunities.org/id/metropolitan-district-council/wolverhampton","AMZNMKTPLACE AMAZON.CO.UK",81.6,"Admin & Support","5999","Equipment - Purchase","14/06/2019"
"Wolverhampton City Council","http://opendatacommunities.org/id/metropolitan-district-council/wolverhampton","POST OFFICE COUNTER",7.6,"LAC Transitions Team","9402","Comms - Postage","14/06/2019"
"Wolverhampton City Council","http://opendatacommunities.org/id/metropolitan-district-council/wolverhampton","POST OFFICE COUNTER",7.4,"LAC Team","9402","Comms - Postage","14/06/2019"
"Wolverhampton City Council","http://opendatacommunities.org/id/metropolitan-district-council/wolverhampton","Amazon.co.uk M61AQ6T34",11.55,"Strategic ICTS (ICT Serv Budget)","5969","Equipment - Purchase","14/06/2019"
"Wolverhampton City Council","http://opendatacommunities.org/id/metropolitan-district-council/wolverhampton","Central Taxis Limited",3.67,"Legal Services","4121","Client Transport","14/06/2019"
"Wolverhampton City Council","http://opendatacommunities.org/id/metropolitan-district-council/wolverhampton","GEORGE WEIL & SONS",14.1,"Creative Studies Delivery Area","5970","Materials","14/06/2019"
"Wolverhampton City Council","http://opendatacommunities.org/id/metropolitan-district-council/wolverhampton","AMZNMktplace",9.17,"Central Costs","5999","Equipment - Purchase","14/06/2019"
"Wolverhampton City Council","http://opendatacommunities.org/id/metropolitan-district-council/wolverhampton","AMZNMktplace",5.6,"Global Budgets","5999","Books","14/06/2019"
"Wolverhampton City Council","http://opendatacommunities.org/id/metropolitan-district-council/wolverhampton","CITY OF WOLVERHAMPTON",38,"Head of Service - CINCP","9399","Services - Professional Fees","14/06/2019"
"Wolverhampton City Council","http://opendatacommunities.org/id/metropolitan-district-council/wolverhampton","CITY OF WOLVERHAMPTON",40,"Head of Service - CINCP","9399","Services - Fees and Charges","14/06/2019"
"Wolverhampton City Council","http://opendatacommunities.org/id/metropolitan-district-council/wolverhampton","OAKLAND",273,"Mental Health Assessment & Care Mgmt","7011","Services - Supplies & Services to users","14/06/2019"
"Wolverhampton City Council","http://opendatacommunities.org/id/metropolitan-district-council/wolverhampton","THE CUMBERLAND HOT",285,"Delivery & OCE Development","7011","Services - Supplies & Services to users","14/06/2019"
"Wolverhampton City Council","http://opendatacommunities.org/id/metropolitan-district-council/wolverhampton","Central Taxis Limited",3.25,"Legal Services","4121","Client Transport","14/06/2019"
"Wolverhampton City Council","http://opendatacommunities.org/id/metropolitan-district-council/wolverhampton","AMZNMktplace",17.06,"Mayoral Expenses","5999","Equipment - Purchase","14/06/2019"
"Wolverhampton City Council","http://opendatacommunities.org/id/metropolitan-district-council/wolverhampton","AMZNMktplace",11.66,"Graduate Trainees","5999","Equipment - Purchase","14/06/2019"
"Wolverhampton City Council","http://opendatacommunities.org/id/metropolitan-district-council/wolverhampton","AMZNMktplace",104.3,"Graduate Trainees","5999","Equipment - Purchase","14/06/2019"
"Wolverhampton City Council","http://opendatacommunities.org/id/metropolitan-district-council/wolverhampton","AMZNMktplace",19.9,"Northicote Farm","5999","Materials","14/06/2019"
"Wolverhampton City Council","http://opendatacommunities.org/id/metropolitan-district-council/wolverhampton","AMZNMktplace",13.54,"Northicote Farm","5999","Equipment - Purchase","14/06/2019"
"Wolverhampton City Council","http://opendatacommunities.org/id/metropolitan-district-council/wolverhampton","Amazon.co.uk M60Z97TN4",20.66,"Northicote Farm","5969","Equipment - Purchase","14/06/2019"
"Wolverhampton City Council","http://opendatacommunities.org/id/metropolitan-district-council/wolverhampton","AMZNMktplace",316.65,"Graduate Trainees","5999","Equipment - Purchase","14/06/2019"
"Wolverhampton City Council","http://opendatacommunities.org/id/metropolitan-district-council/wolverhampton","STAFFORDSHIRE SIGNS &",52.5,"Document Centre - General","2741","Materials","13/06/2019"
"Wolverhampton City Council","http://opendatacommunities.org/id/metropolitan-district-council/wolverhampton","HALCO PRODUCTS",43.92,"Document Centre - General","5072","Equipment - Purchase","13/06/2019"
"Wolverhampton City Council","http://opendatacommunities.org/id/metropolitan-district-council/wolverhampton","SCREWFIX DIRECT",44.83,"Technician","5211","Materials","13/06/2019"
"Wolverhampton City Council","http://opendatacommunities.org/id/metropolitan-district-council/wolverhampton","ROYAL CARPETS",125,"LAC Transitions Team","5713","Client Allowances","13/06/2019"
"Wolverhampton City Council","http://opendatacommunities.org/id/metropolitan-district-council/wolverhampton","TRAVELODGE",5.25,"Regional Adoption Agency","3615","Services - Supplies & Services to users","13/06/2019"
"Wolverhampton City Council","http://opendatacommunities.org/id/metropolitan-district-council/wolverhampton","MEDIA & COMMUNICATIONS",228,"Regional Adoption Agency","4812","Comms - Mobile Telephones","13/06/2019"
"Wolverhampton City Council","http://opendatacommunities.org/id/metropolitan-district-council/wolverhampton","POST OFFICE COUNTER",5.4,"Regional Adoption Agency","9402","Comms - Postage","13/06/2019"
"Wolverhampton City Council","http://opendatacommunities.org/id/metropolitan-district-council/wolverhampton","TESCO STORES 5194",-27.99,"Towers Outdoor Education Centre","5411","Provisions (Not for resale)","13/06/2019"
"Wolverhampton City Council","http://opendatacommunities.org/id/metropolitan-district-council/wolverhampton","AMZNMKTPLACE AMAZON.CO.UK",51.67,"Towers Outdoor Education Centre","5999","Fixtures and Fittings - Purchases","13/06/2019"
"Wolverhampton City Council","http://opendatacommunities.org/id/metropolitan-district-council/wolverhampton","AMZNMKTPLACE AMAZON.CO.UK",25.41,"Towers Outdoor Education Centre","5999","Fixtures and Fittings - Purchases","13/06/2019"
"Wolverhampton City Council","http://opendatacommunities.org/id/metropolitan-district-council/wolverhampton","CARVER/WOLVERHAMPTON/L",-26.29,"Ground Maintenance East","5211","Materials","13/06/2019"
"Wolverhampton City Council","http://opendatacommunities.org/id/metropolitan-district-council/wolverhampton","CARVER/WOLVERHAMPTON/L",45.91,"Ground Maintenance East","5211","Materials","13/06/2019"
"Wolverhampton City Council","http://opendatacommunities.org/id/metropolitan-district-council/wolverhampton","ECPBAYSWATERROAD",12.23,"Mayoral Expenses","7523","Parking Fees","13/06/2019"
"Wolverhampton City Council","http://opendatacommunities.org/id/metropolitan-district-council/wolverhampton","3C_ T4 Crowne Plaza -",36.25,"Mayoral Expenses","7523","Parking Fees","13/06/2019"
"Wolverhampton City Council","http://opendatacommunities.org/id/metropolitan-district-council/wolverhampton","CROWNE PLAZA",591.67,"Mayoral Expenses","7011","Accommodation Costs","13/06/2019"
"Wolverhampton City Council","http://opendatacommunities.org/id/metropolitan-district-council/wolverhampton","AMZNMktplace",134.17,"Communications & Marketing - General","5999","Equipment - Purchase","13/06/2019"
"Wolverhampton City Council","http://opendatacommunities.org/id/metropolitan-district-council/wolverhampton","Amazon.co.uk M68J43J14",76.2,"Youth Offending Team","5969","Books","13/06/2019"
"Wolverhampton City Council","http://opendatacommunities.org/id/metropolitan-district-council/wolverhampton","TVLICENSING.CO.UK",154.5,"LAC Transitions Team","7392","Services - Consultants","13/06/2019"
"Wolverhampton City Council","http://opendatacommunities.org/id/metropolitan-district-council/wolverhampton","Q PARK BIRMINGHAM BRIN",9,"Managing Director","7523","Car Allowances","13/06/2019"
"Wolverhampton City Council","http://opendatacommunities.org/id/metropolitan-district-council/wolverhampton","AMZNMKTPLACE AMAZON.CO.UK",12.66,"Children & Young People Support Costs","5999","Equipment - Purchase","13/06/2019"
"Wolverhampton City Council","http://opendatacommunities.org/id/metropolitan-district-council/wolverhampton","Amazon.co.uk M67B69JB4",12.47,"Children & Young People Support Costs","5969","Equipment - Purchase","13/06/2019"
"Wolverhampton City Council","http://opendatacommunities.org/id/metropolitan-district-council/wolverhampton","Amazon.co.uk M61FY0JV4",102.85,"Children & Young People Support Costs","5969","Equipment - Purchase","13/06/2019"
"Wolverhampton City Council","http://opendatacommunities.org/id/metropolitan-district-council/wolverhampton","Amazon.co.uk M60F63J24",12.47,"Children & Young People Support Costs","5969","Equipment - Purchase","13/06/2019"
"Wolverhampton City Council","http://opendatacommunities.org/id/metropolitan-district-council/wolverhampton","WWW.FIREANDSAFETYCENTRE",47.94,"Central Costs","1799","Equipment - Health and Safety","13/06/2019"
"Wolverhampton City Council","http://opendatacommunities.org/id/metropolitan-district-council/wolverhampton","EB  SET CONFERENCE 201",57.5,"Central Costs","7399","Training Expenses","13/06/2019"
"Wolverhampton City Council","http://opendatacommunities.org/id/metropolitan-district-council/wolverhampton","TVLICENSING.CO.UK",154.5,"LAC Transitions Team","7392","Client Allowances","13/06/2019"
"Wolverhampton City Council","http://opendatacommunities.org/id/metropolitan-district-council/wolverhampton","Amazon.co.uk M606N6JW4",9.95,"Global Budgets","5969","Books","13/06/2019"
"Wolverhampton City Council","http://opendatacommunities.org/id/metropolitan-district-council/wolverhampton","WAITROSE 696",13.99,"EIP Locality 3","5411","Grant Payments","13/06/2019"
"Wolverhampton City Council","http://opendatacommunities.org/id/metropolitan-district-council/wolverhampton","Virgin Trains",50.35,"Members Expenses","4112","Public Transport","13/06/2019"
"Wolverhampton City Council","http://opendatacommunities.org/id/metropolitan-district-council/wolverhampton","Virgin Trains",2439.2,"Service Director City Assets","4112","Public Transport","13/06/2019"
"Wolverhampton City Council","http://opendatacommunities.org/id/metropolitan-district-council/wolverhampton","LOYD 37 CHURCH STREET",166.67,"Duke Street Bungalows","6011","Provisions (Not for resale)","13/06/2019"
"Wolverhampton City Council","http://opendatacommunities.org/id/metropolitan-district-council/wolverhampton","REDACTIVE",795,"Central Training","7399","Training Expenses","13/06/2019"
"Wolverhampton City Council","http://opendatacommunities.org/id/metropolitan-district-council/wolverhampton","J VAN VLIET BIRMINGHAM",36.53,"Creative Studies Delivery Area","5399","Materials","13/06/2019"
"Wolverhampton City Council","http://opendatacommunities.org/id/metropolitan-district-council/wolverhampton","WWW.ARGOS.CO.UK",123.94,"CIN/CP Social Work Unit - Area 4","5310","Section 17","13/06/2019"
"Wolverhampton City Council","http://opendatacommunities.org/id/metropolitan-district-council/wolverhampton","THE CUMBERLAND HOT",570,"Delivery & OCE Development","7011","Services - Supplies & Services to users","13/06/2019"
"Wolverhampton City Council","http://opendatacommunities.org/id/metropolitan-district-council/wolverhampton","Trainline",187.73,"Delivery & OCE Development","4112","Public Transport","13/06/2019"
"Wolverhampton City Council","http://opendatacommunities.org/id/metropolitan-district-council/wolverhampton","QUALITY INNS",201.82,"Members Expenses","3508","Accommodation Costs","13/06/2019"
"Wolverhampton City Council","http://opendatacommunities.org/id/metropolitan-district-council/wolverhampton","Amazon.co.uk M69845JC4",39.91,"Northicote Farm","5969","Equipment - Purchase","13/06/2019"
"Wolverhampton City Council","http://opendatacommunities.org/id/metropolitan-district-council/wolverhampton","AMZNMktplace",41.4,"Northicote Farm","5999","Equipment - Purchase","13/06/2019"
"Wolverhampton City Council","http://opendatacommunities.org/id/metropolitan-district-council/wolverhampton","POST OFFICE COUNTER",201,"Safeguarding Admin Resource","9402","Comms - Postage","13/06/2019"
"Wolverhampton City Council","http://opendatacommunities.org/id/metropolitan-district-council/wolverhampton","AMZNMktplace",31.68,"Key to Inspiration","5999","Equipment - Purchase","13/06/2019"
"Wolverhampton City Council","http://opendatacommunities.org/id/metropolitan-district-council/wolverhampton","Virgin Trains",75.6,"Capital Programme Team","4112","Public Transport","13/06/2019"
"Wolverhampton City Council","http://opendatacommunities.org/id/metropolitan-district-council/wolverhampton","ASDA GROCERIES ONLINE",-4.15,"Bradley Resource Centre","5411","Provisions (Not for resale)","13/06/2019"
"Wolverhampton City Council","http://opendatacommunities.org/id/metropolitan-district-council/wolverhampton","ASDA GROCERIES ONLINE",83.74,"Bradley Resource Centre","5411","Provisions (Not for resale)","13/06/2019"
"Wolverhampton City Council","http://opendatacommunities.org/id/metropolitan-district-council/wolverhampton","Amazon.co.uk M656J23F4",14.97,"Children & Young People Support Costs","5969","Equipment - Purchase","12/06/2019"
"Wolverhampton City Council","http://opendatacommunities.org/id/metropolitan-district-council/wolverhampton","Amazon.co.uk M65ZB73B4",14.97,"Children & Young People Support Costs","5969","Equipment - Purchase","12/06/2019"
"Wolverhampton City Council","http://opendatacommunities.org/id/metropolitan-district-council/wolverhampton","Amazon.co.uk M65YQ93S4",12.47,"Children & Young People Support Costs","5969","Equipment - Purchase","12/06/2019"
"Wolverhampton City Council","http://opendatacommunities.org/id/metropolitan-district-council/wolverhampton","Amazon.co.uk M65X15NF4",12.47,"Children & Young People Support Costs","5969","Equipment - Purchase","12/06/2019"
"Wolverhampton City Council","http://opendatacommunities.org/id/metropolitan-district-council/wolverhampton","Amazon.co.uk M65O58344",12.47,"Children & Young People Support Costs","5969","Equipment - Purchase","12/06/2019"
"Wolverhampton City Council","http://opendatacommunities.org/id/metropolitan-district-council/wolverhampton","Amazon.co.uk M65MN3334",12.47,"Children & Young People Support Costs","5969","Equipment - Purchase","12/06/2019"
"Wolverhampton City Council","http://opendatacommunities.org/id/metropolitan-district-council/wolverhampton","Amazon.co.uk M65DX13J4",12.47,"Children & Young People Support Costs","5969","Equipment - Purchase","12/06/2019"
"Wolverhampton City Council","http://opendatacommunities.org/id/metropolitan-district-council/wolverhampton","Amazon.co.uk M65DD13S4",12.47,"Children & Young People Support Costs","5969","Equipment - Purchase","12/06/2019"
"Wolverhampton City Council","http://opendatacommunities.org/id/metropolitan-district-council/wolverhampton","Amazon.co.uk M64684304",14.97,"Children & Young People Support Costs","5969","Equipment - Purchase","12/06/2019"
"Wolverhampton City Council","http://opendatacommunities.org/id/metropolitan-district-council/wolverhampton","Amazon.co.uk M64WV83V4",14.97,"Children & Young People Support Costs","5969","Equipment - Purchase","12/06/2019"
"Wolverhampton City Council","http://opendatacommunities.org/id/metropolitan-district-council/wolverhampton","Amazon.co.uk M64WS5364",12.47,"Children & Young People Support Costs","5969","Equipment - Purchase","12/06/2019"
"Wolverhampton City Council","http://opendatacommunities.org/id/metropolitan-district-council/wolverhampton","Amazon.co.uk M64O09344",12.47,"Children & Young People Support Costs","5969","Equipment - Purchase","12/06/2019"
"Wolverhampton City Council","http://opendatacommunities.org/id/metropolitan-district-council/wolverhampton","Amazon.co.uk M64HO8NQ4",12.47,"Children & Young People Support Costs","5969","Equipment - Purchase","12/06/2019"
"Wolverhampton City Council","http://opendatacommunities.org/id/metropolitan-district-council/wolverhampton","Amazon.co.uk M64AX63I4",12.47,"Children & Young People Support Costs","5969","Equipment - Purchase","12/06/2019"
"Wolverhampton City Council","http://opendatacommunities.org/id/metropolitan-district-council/wolverhampton","Amazon.co.uk M63XV6NW4",12.47,"Children & Young People Support Costs","5969","Equipment - Purchase","12/06/2019"
"Wolverhampton City Council","http://opendatacommunities.org/id/metropolitan-district-council/wolverhampton","Amazon.co.uk M63W323U4",12.47,"Children & Young People Support Costs","5969","Equipment - Purchase","12/06/2019"
"Wolverhampton City Council","http://opendatacommunities.org/id/metropolitan-district-council/wolverhampton","Amazon.co.uk M63OJ03U4",12.47,"Children & Young People Support Costs","5969","Equipment - Purchase","12/06/2019"
"Wolverhampton City Council","http://opendatacommunities.org/id/metropolitan-district-council/wolverhampton","Amazon.co.uk M63LG7374",12.47,"Children & Young People Support Costs","5969","Equipment - Purchase","12/06/2019"
"Wolverhampton City Council","http://opendatacommunities.org/id/metropolitan-district-council/wolverhampton","Amazon.co.uk M63DZ23J4",12.47,"Children & Young People Support Costs","5969","Equipment - Purchase","12/06/2019"
"Wolverhampton City Council","http://opendatacommunities.org/id/metropolitan-district-council/wolverhampton","Amazon.co.uk M63CQ8344",12.47,"Children & Young People Support Costs","5969","Equipment - Purchase","12/06/2019"
"Wolverhampton City Council","http://opendatacommunities.org/id/metropolitan-district-council/wolverhampton","Amazon.co.uk M63A803L4",12.47,"Children & Young People Support Costs","5969","Equipment - Purchase","12/06/2019"
"Wolverhampton City Council","http://opendatacommunities.org/id/metropolitan-district-council/wolverhampton","Amazon.co.uk M62WI53T4",12.47,"Children & Young People Support Costs","5969","Equipment - Purchase","12/06/2019"
"Wolverhampton City Council","http://opendatacommunities.org/id/metropolitan-district-council/wolverhampton","Amazon.co.uk M62HR9NQ4",14.97,"Children & Young People Support Costs","5969","Equipment - Purchase","12/06/2019"
"Wolverhampton City Council","http://opendatacommunities.org/id/metropolitan-district-council/wolverhampton","Amazon.co.uk M616R63K4",12.47,"Children & Young People Support Costs","5969","Equipment - Purchase","12/06/2019"
"Wolverhampton City Council","http://opendatacommunities.org/id/metropolitan-district-council/wolverhampton","Amazon.co.uk M61X90NO4",12.47,"Children & Young People Support Costs","5969","Equipment - Purchase","12/06/2019"
"Wolverhampton City Council","http://opendatacommunities.org/id/metropolitan-district-council/wolverhampton","Amazon.co.uk M61D04324",12.47,"Children & Young People Support Costs","5969","Equipment - Purchase","12/06/2019"
"Wolverhampton City Council","http://opendatacommunities.org/id/metropolitan-district-council/wolverhampton","Amazon.co.uk M60WP53B4",12.47,"Children & Young People Support Costs","5969","Equipment - Purchase","12/06/2019"
"Wolverhampton City Council","http://opendatacommunities.org/id/metropolitan-district-council/wolverhampton","Amazon.co.uk M60O663P4",12.47,"Children & Young People Support Costs","5969","Equipment - Purchase","12/06/2019"
"Wolverhampton City Council","http://opendatacommunities.org/id/metropolitan-district-council/wolverhampton","Amazon.co.uk M60HQ4ND4",14.97,"Children & Young People Support Costs","5969","Equipment - Purchase","12/06/2019"
"Wolverhampton City Council","http://opendatacommunities.org/id/metropolitan-district-council/wolverhampton","ASDA GROCERIES ONLINE",-0.6,"Central Costs","5411","Provisions (Not for resale)","12/06/2019"
"Wolverhampton City Council","http://opendatacommunities.org/id/metropolitan-district-council/wolverhampton","ASDA GROCERIES ONLINE",38.32,"Central Costs","5411","Provisions (Not for resale)","12/06/2019"
"Wolverhampton City Council","http://opendatacommunities.org/id/metropolitan-district-council/wolverhampton","ASDA GEORGE COM LEEDS",44.17,"LAC Transitions Team","5411","Client Allowances","12/06/2019"
"Wolverhampton City Council","http://opendatacommunities.org/id/metropolitan-district-council/wolverhampton","PAYPAL  COMMUNITYEQ",27.95,"Telecare","8931","Services - Professional Fees","12/06/2019"
"Wolverhampton City Council","http://opendatacommunities.org/id/metropolitan-district-council/wolverhampton","WWW.WOLVERHAMPTON.GOV.UK",500,"LAC Transitions Team","9399","Client Allowances","12/06/2019"
"Wolverhampton City Council","http://opendatacommunities.org/id/metropolitan-district-council/wolverhampton","WWW.WOLVERHAMPTON.GOV.UK",500,"LAC Transitions Team","9399","Client Allowances","12/06/2019"
"Wolverhampton City Council","http://opendatacommunities.org/id/metropolitan-district-council/wolverhampton","AMZNMKTPLACE AMAZON.CO.UK",118.9,"Technical Support","5999","Equipment - Purchase","12/06/2019"
"Wolverhampton City Council","http://opendatacommunities.org/id/metropolitan-district-council/wolverhampton","MT SKIPS",140,"EIP Locality 3","7394","Grant Payments","12/06/2019"
"Wolverhampton City Council","http://opendatacommunities.org/id/metropolitan-district-council/wolverhampton","ARGOS LTD",-41.67,"LAC Transitions Team","5310","Client Allowances","12/06/2019"
"Wolverhampton City Council","http://opendatacommunities.org/id/metropolitan-district-council/wolverhampton","ARGOS LTD",55,"LAC Transitions Team","5310","Client Allowances","12/06/2019"
"Wolverhampton City Council","http://opendatacommunities.org/id/metropolitan-district-council/wolverhampton","VIRGIN MEDIA PYMTS",7.5,"Community Enablement","4814","Comms - Telephone Call charges","12/06/2019"
"Wolverhampton City Council","http://opendatacommunities.org/id/metropolitan-district-council/wolverhampton","UAL SHORT COURSES LTD",332.5,"Central Training","8220","Training Expenses","12/06/2019"
"Wolverhampton City Council","http://opendatacommunities.org/id/metropolitan-district-council/wolverhampton","OAKLAND",62,"Mental Health Assessment & Care Mgmt","7011","Services - Supplies & Services to users","12/06/2019"
"Wolverhampton City Council","http://opendatacommunities.org/id/metropolitan-district-council/wolverhampton","Trainline",52.2,"CIN/CP Social Work Unit - Area 4","4112","Section 17","12/06/2019"
"Wolverhampton City Council","http://opendatacommunities.org/id/metropolitan-district-council/wolverhampton","CITY OF WOLVERHAMPTON",40.83,"LAC Transitions Team","9399","Client Allowances","12/06/2019"
"Wolverhampton City Council","http://opendatacommunities.org/id/metropolitan-district-council/wolverhampton","PAYPAL  TMM DIRECT",24.04,"Northicote Farm","5995","Equipment - Purchase","12/06/2019"
"Wolverhampton City Council","http://opendatacommunities.org/id/metropolitan-district-council/wolverhampton","PAYPAL  NIPOULTRYLT",7.42,"Northicote Farm","5995","Equipment - Purchase","12/06/2019"
"Wolverhampton City Council","http://opendatacommunities.org/id/metropolitan-district-council/wolverhampton","COMPANIES HOUSE",13,"-","9399","Services - Fees and Charges","12/06/2019"
"Wolverhampton City Council","http://opendatacommunities.org/id/metropolitan-district-council/wolverhampton","LIDL GB WOLVERHAMPTON",140.83,"Children & Young People Support Costs","5411","Client Allowances","12/06/2019"
"Wolverhampton City Council","http://opendatacommunities.org/id/metropolitan-district-council/wolverhampton","AMZNMktplace",18.96,"Key to Inspiration","5999","Equipment - Purchase","12/06/2019"
"Wolverhampton City Council","http://opendatacommunities.org/id/metropolitan-district-council/wolverhampton","AMZNMktplace",24.76,"Key to Inspiration","5999","Equipment - Purchase","12/06/2019"
"Wolverhampton City Council","http://opendatacommunities.org/id/metropolitan-district-council/wolverhampton","AMZNMKTPLACE AMAZON.CO.UK",8.32,"Key to Inspiration","5999","Equipment - Purchase","12/06/2019"
"Wolverhampton City Council","http://opendatacommunities.org/id/metropolitan-district-council/wolverhampton","PAYPAL  MOONDOWN",7.8,"Northicote Farm","5995","Equipment - Purchase","12/06/2019"
"Wolverhampton City Council","http://opendatacommunities.org/id/metropolitan-district-council/wolverhampton","AMZNMktplace",10.56,"Key to Inspiration","5999","Equipment - Purchase","12/06/2019"
"Wolverhampton City Council","http://opendatacommunities.org/id/metropolitan-district-council/wolverhampton","AMZNMktplace",9.98,"Key to Inspiration","5999","Equipment - Purchase","12/06/2019"
"Wolverhampton City Council","http://opendatacommunities.org/id/metropolitan-district-council/wolverhampton","AMZNMktplace",2.91,"Key to Inspiration","5999","Equipment - Purchase","12/06/2019"
"Wolverhampton City Council","http://opendatacommunities.org/id/metropolitan-district-council/wolverhampton","MTH",45,"Civic Centre Repairs & Maintenance","7394","Equipment - Purchase","12/06/2019"
"Wolverhampton City Council","http://opendatacommunities.org/id/metropolitan-district-council/wolverhampton","ASDA GROCERIES ONLINE",47.48,"Bradley Resource Centre","5411","Provisions (Not for resale)","12/06/2019"
"Wolverhampton City Council","http://opendatacommunities.org/id/metropolitan-district-council/wolverhampton","WM MORRISON FOOD.COM",87.97,"Discretionary Fund","5411","Materials","12/06/2019"
"Wolverhampton City Council","http://opendatacommunities.org/id/metropolitan-district-council/wolverhampton","TRAVELODGE",70.62,"Regional Adoption Agency","3615","Accommodation Costs","12/06/2019"
"Wolverhampton City Council","http://opendatacommunities.org/id/metropolitan-district-council/wolverhampton","POST OFFICE COUNTER",1.05,"Regional Adoption Agency","9402","Comms - Postage","12/06/2019"
"Wolverhampton City Council","http://opendatacommunities.org/id/metropolitan-district-council/wolverhampton","AMZNMktplace",1.33,"Regional Adoption Agency","5999","Equipment - Purchase","12/06/2019"
"Wolverhampton City Council","http://opendatacommunities.org/id/metropolitan-district-council/wolverhampton","CO-OP GROUP 070228",6.25,"Towers Outdoor Education Centre","5411","Fixtures and Fittings - Purchases","12/06/2019"
"Wolverhampton City Council","http://opendatacommunities.org/id/metropolitan-district-council/wolverhampton","TESCO DELIVERY SAVER2",3.49,"Towers Outdoor Education Centre","5968","Provisions (Not for resale)","12/06/2019"
"Wolverhampton City Council","http://opendatacommunities.org/id/metropolitan-district-council/wolverhampton","TESCO STORES 5194",287.5,"Towers Outdoor Education Centre","5411","Provisions (Not for resale)","12/06/2019"
"Wolverhampton City Council","http://opendatacommunities.org/id/metropolitan-district-council/wolverhampton","MONARCH CLEANERS LTD",335.9,"Towers Outdoor Education Centre","7216","Laundry Expenses","12/06/2019"
"Wolverhampton City Council","http://opendatacommunities.org/id/metropolitan-district-council/wolverhampton","AMZN Mktp UK M65WS4324",41.48,"Towers Outdoor Education Centre","5942","Equipment - Purchase","12/06/2019"
"Wolverhampton City Council","http://opendatacommunities.org/id/metropolitan-district-council/wolverhampton","WILLSTACK.CO.UK",829,"Aldersley Leisure Village","5712","Equipment - Purchase","12/06/2019"
"Wolverhampton City Council","http://opendatacommunities.org/id/metropolitan-district-council/wolverhampton","WEST COAST TRAINS",9.58,"Economic Development","4112","Public Transport","12/06/2019"
"Wolverhampton City Council","http://opendatacommunities.org/id/metropolitan-district-council/wolverhampton","CLOCKING SYSTEM",240,"Ground Maintenance East","5085","Equipment - Purchase","12/06/2019"
"Wolverhampton City Council","http://opendatacommunities.org/id/metropolitan-district-council/wolverhampton","Trainline.com",19.18,"LAC Education Team (LACE)","4112","Public Transport","12/06/2019"
"Wolverhampton City Council","http://opendatacommunities.org/id/metropolitan-district-council/wolverhampton","Trainline.com",25.18,"LAC Education Team (LACE)","4112","Public Transport","12/06/2019"
"Wolverhampton City Council","http://opendatacommunities.org/id/metropolitan-district-council/wolverhampton","Trainline.com",47.31,"LAC Education Team (LACE)","4112","Public Transport","12/06/2019"
"Wolverhampton City Council","http://opendatacommunities.org/id/metropolitan-district-council/wolverhampton","WWW.UK.INSIGHT.COM",464.79,"Strategic ICTS (ICT Serv Budget)","5964","Equipment - Purchase","12/06/2019"
"Wolverhampton City Council","http://opendatacommunities.org/id/metropolitan-district-council/wolverhampton","Cross Country Trains",20,"Strategic ICTS (ICT Serv Budget)","4112","Public Transport","12/06/2019"
"Wolverhampton City Council","http://opendatacommunities.org/id/metropolitan-district-council/wolverhampton","Amazon.co.uk M68M96324",4.99,"Children & Young People Support Costs","5969","Equipment - Purchase","12/06/2019"
"Wolverhampton City Council","http://opendatacommunities.org/id/metropolitan-district-council/wolverhampton","Amazon.co.uk M65O443K4",12.47,"Children & Young People Support Costs","5969","Equipment - Purchase","12/06/2019"
"Wolverhampton City Council","http://opendatacommunities.org/id/metropolitan-district-council/wolverhampton","Amazon.co.uk M61ML73G4",12.47,"Children & Young People Support Costs","5969","Equipment - Purchase","12/06/2019"
"Wolverhampton City Council","http://opendatacommunities.org/id/metropolitan-district-council/wolverhampton","WWW.IKEA.COM",739.95,"Children & Young People Support Costs","5712","Equipment - Purchase","12/06/2019"
"Wolverhampton City Council","http://opendatacommunities.org/id/metropolitan-district-council/wolverhampton","Amazon.co.uk M69483NO4",12.47,"Children & Young People Support Costs","5969","Equipment - Purchase","12/06/2019"
"Wolverhampton City Council","http://opendatacommunities.org/id/metropolitan-district-council/wolverhampton","Amazon.co.uk M69YM93B4",12.47,"Children & Young People Support Costs","5969","Equipment - Purchase","12/06/2019"
"Wolverhampton City Council","http://opendatacommunities.org/id/metropolitan-district-council/wolverhampton","Amazon.co.uk M69YM8314",12.47,"Children & Young People Support Costs","5969","Equipment - Purchase","12/06/2019"
"Wolverhampton City Council","http://opendatacommunities.org/id/metropolitan-district-council/wolverhampton","Amazon.co.uk M68WV53O4",14.97,"Children & Young People Support Costs","5969","Equipment - Purchase","12/06/2019"
"Wolverhampton City Council","http://opendatacommunities.org/id/metropolitan-district-council/wolverhampton","Amazon.co.uk M68LG9394",12.47,"Children & Young People Support Costs","5969","Equipment - Purchase","12/06/2019"
"Wolverhampton City Council","http://opendatacommunities.org/id/metropolitan-district-council/wolverhampton","Amazon.co.uk M68H70NQ4",12.47,"Children & Young People Support Costs","5969","Equipment - Purchase","12/06/2019"
"Wolverhampton City Council","http://opendatacommunities.org/id/metropolitan-district-council/wolverhampton","Amazon.co.uk M68HN4NG4",14.97,"Children & Young People Support Costs","5969","Equipment - Purchase","12/06/2019"
"Wolverhampton City Council","http://opendatacommunities.org/id/metropolitan-district-council/wolverhampton","Amazon.co.uk M67YY93R4",12.47,"Children & Young People Support Costs","5969","Equipment - Purchase","12/06/2019"
"Wolverhampton City Council","http://opendatacommunities.org/id/metropolitan-district-council/wolverhampton","Amazon.co.uk M67X83NC4",14.97,"Children & Young People Support Costs","5969","Equipment - Purchase","12/06/2019"
"Wolverhampton City Council","http://opendatacommunities.org/id/metropolitan-district-council/wolverhampton","Amazon.co.uk M67OC3334",12.47,"Children & Young People Support Costs","5969","Equipment - Purchase","12/06/2019"
"Wolverhampton City Council","http://opendatacommunities.org/id/metropolitan-district-council/wolverhampton","Amazon.co.uk M67LA43E4",14.97,"Children & Young People Support Costs","5969","Equipment - Purchase","12/06/2019"
"Wolverhampton City Council","http://opendatacommunities.org/id/metropolitan-district-council/wolverhampton","Amazon.co.uk M67HR6NP4",12.47,"Children & Young People Support Costs","5969","Equipment - Purchase","12/06/2019"
"Wolverhampton City Council","http://opendatacommunities.org/id/metropolitan-district-council/wolverhampton","Amazon.co.uk M67AI33X4",14.97,"Children & Young People Support Costs","5969","Equipment - Purchase","12/06/2019"
"Wolverhampton City Council","http://opendatacommunities.org/id/metropolitan-district-council/wolverhampton","Amazon.co.uk M66YO43X4",12.47,"Children & Young People Support Costs","5969","Equipment - Purchase","12/06/2019"
"Wolverhampton City Council","http://opendatacommunities.org/id/metropolitan-district-council/wolverhampton","Amazon.co.uk M66XB6NV4",12.47,"Children & Young People Support Costs","5969","Equipment - Purchase","12/06/2019"
"Wolverhampton City Council","http://opendatacommunities.org/id/metropolitan-district-council/wolverhampton","Trainline.com",242.98,"Music Support Team","4112","Public Transport","11/06/2019"
"Wolverhampton City Council","http://opendatacommunities.org/id/metropolitan-district-council/wolverhampton","WWW.WMCA.CO.UK",56.5,"IMPACT","9399","Services - Fees and Charges","11/06/2019"
"Wolverhampton City Council","http://opendatacommunities.org/id/metropolitan-district-council/wolverhampton","TVLICENSING.CO.UK",154.5,"LAC Transitions Team","7392","Services - Consultants","11/06/2019"
"Wolverhampton City Council","http://opendatacommunities.org/id/metropolitan-district-council/wolverhampton","STATIONERY OFFICE BOOK",25.9,"Revenues","5942","Books","11/06/2019"
"Wolverhampton City Council","http://opendatacommunities.org/id/metropolitan-district-council/wolverhampton","CARVER/WOLVERHAMPTON/L",30.25,"Street Lighting Maintenance","5211","Materials","11/06/2019"
"Wolverhampton City Council","http://opendatacommunities.org/id/metropolitan-district-council/wolverhampton","Trainline.com",-26.08,"LAC Transitions Team","4112","Client Allowances","11/06/2019"
"Wolverhampton City Council","http://opendatacommunities.org/id/metropolitan-district-council/wolverhampton","Amazon.co.uk M652H4ZI4",35.82,"Towers Outdoor Education Centre","5969","Equipment - Purchase","11/06/2019"
"Wolverhampton City Council","http://opendatacommunities.org/id/metropolitan-district-council/wolverhampton","ALBRIGHTON HARDWARE",11.65,"Aldersley Leisure Village","5251","Equipment - Purchase","11/06/2019"
"Wolverhampton City Council","http://opendatacommunities.org/id/metropolitan-district-council/wolverhampton","WWW.SAFELINCS.CO.UK",106.4,"Aldersley Leisure Village","5065","Equipment - R & M","11/06/2019"
"Wolverhampton City Council","http://opendatacommunities.org/id/metropolitan-district-council/wolverhampton","CARVER/WOLVERHAMPTON/L",26.29,"Ground Maintenance East","5211","Materials","11/06/2019"
"Wolverhampton City Council","http://opendatacommunities.org/id/metropolitan-district-council/wolverhampton","RESPONSTER PLUS PLAN",15.45,"Communications & Marketing - General","5734","Computing - Purchase of Software","11/06/2019"
"Wolverhampton City Council","http://opendatacommunities.org/id/metropolitan-district-council/wolverhampton","Trainline",44.26,"LAC Transitions Team","4112","Public Transport","11/06/2019"
"Wolverhampton City Council","http://opendatacommunities.org/id/metropolitan-district-council/wolverhampton","Trainline.com",19.43,"Youth Offending Team","4112","Public Transport","11/06/2019"
"Wolverhampton City Council","http://opendatacommunities.org/id/metropolitan-district-council/wolverhampton","Trainline.com",31.29,"Healthy Ageing","4112","Public Transport","11/06/2019"
"Wolverhampton City Council","http://opendatacommunities.org/id/metropolitan-district-council/wolverhampton","AMZNMktplace",11.04,"Strategic ICTS (ICT Serv Budget)","5999","Equipment - Purchase","11/06/2019"
"Wolverhampton City Council","http://opendatacommunities.org/id/metropolitan-district-council/wolverhampton","AMZNMKTPLACE AMAZON.CO.UK",22.44,"Strategic ICTS (ICT Serv Budget)","5999","Equipment - Purchase","11/06/2019"
"Wolverhampton City Council","http://opendatacommunities.org/id/metropolitan-district-council/wolverhampton","Amazon.co.uk M670M2Z64",21.1,"Strategic ICTS (ICT Serv Budget)","5969","Equipment - Purchase","11/06/2019"
"Wolverhampton City Council","http://opendatacommunities.org/id/metropolitan-district-council/wolverhampton","ROYAL CARPETS",187.5,"LAC Transitions Team","5713","Client Allowances","11/06/2019"
"Wolverhampton City Council","http://opendatacommunities.org/id/metropolitan-district-council/wolverhampton","B&M RETAIL",51.79,"LAC Transitions Team","5310","Client Allowances","11/06/2019"
"Wolverhampton City Council","http://opendatacommunities.org/id/metropolitan-district-council/wolverhampton","CRAZYPRICEBEDS",166.66,"LAC Transitions Team","5712","Client Allowances","11/06/2019"
"Wolverhampton City Council","http://opendatacommunities.org/id/metropolitan-district-council/wolverhampton","1ST CHOICE WINDOWS DOO",250,"CIN/CP Social Work Unit - Area 7","1799","Section 17","11/06/2019"
"Wolverhampton City Council","http://opendatacommunities.org/id/metropolitan-district-council/wolverhampton","WICKES WOLVERHAMPTON",15,"Community Enablement","5211","Fixtures and Fittings - R&M","11/06/2019"
"Wolverhampton City Council","http://opendatacommunities.org/id/metropolitan-district-council/wolverhampton","CITY OF WOLVERHAMPTON",27,"Looked After Team 2","9399","Financial Assistance In Exceptional Circ","11/06/2019"
"Wolverhampton City Council","http://opendatacommunities.org/id/metropolitan-district-council/wolverhampton","Virgin Trains",72.05,"Looked After Team 2","4112","Public Transport","11/06/2019"
"Wolverhampton City Council","http://opendatacommunities.org/id/metropolitan-district-council/wolverhampton","POST OFFICE COUNTER",7.4,"Looked After Team 2","9402","Comms - Postage","11/06/2019"
"Wolverhampton City Council","http://opendatacommunities.org/id/metropolitan-district-council/wolverhampton","Virgin Trains",126,"Members Expenses","4112","Public Transport","11/06/2019"
"Wolverhampton City Council","http://opendatacommunities.org/id/metropolitan-district-council/wolverhampton","THE SOLICITORS GROUP",102,"Central Training","8244","Training Expenses","11/06/2019"
"Wolverhampton City Council","http://opendatacommunities.org/id/metropolitan-district-council/wolverhampton","R.I.C.S. -(DRS)",130,"Central Training","8699","Training Expenses","11/06/2019"
"Wolverhampton City Council","http://opendatacommunities.org/id/metropolitan-district-council/wolverhampton","EE STORE R501",8.33,"School Crossing Patrol","4814","Comms - Telephone Call charges","11/06/2019"
"Wolverhampton City Council","http://opendatacommunities.org/id/metropolitan-district-council/wolverhampton","CITY OF WOLVERHAMPTON",27,"CIN/CP Social Work Unit - Area 5","9399","Section 17","11/06/2019"
"Wolverhampton City Council","http://opendatacommunities.org/id/metropolitan-district-council/wolverhampton","PO LOW HILL 1592",100,"EIP Locality 7","6011","Grant Payments","11/06/2019"
"Wolverhampton City Council","http://opendatacommunities.org/id/metropolitan-district-council/wolverhampton","APPLE.COM/UK",10,"Members Expenses","5732","Equipment - Purchase","11/06/2019"
"Wolverhampton City Council","http://opendatacommunities.org/id/metropolitan-district-council/wolverhampton","ASDA GROCERIES ONLINE",-12.19,"Bradley Resource Centre","5411","Provisions (Not for resale)","10/06/2019"
"Wolverhampton City Council","http://opendatacommunities.org/id/metropolitan-district-council/wolverhampton","ASDA GROCERIES ONLINE",149.74,"Bradley Resource Centre","5411","Provisions (Not for resale)","10/06/2019"
"Wolverhampton City Council","http://opendatacommunities.org/id/metropolitan-district-council/wolverhampton","ASDA STORE 4753",7.6,"Bradley Resource Centre","5411","Provisions (Not for resale)","10/06/2019"
"Wolverhampton City Council","http://opendatacommunities.org/id/metropolitan-district-council/wolverhampton","DULUX DECORATOR CENTRE",274.32,"Technician","5198","Materials","10/06/2019"
"Wolverhampton City Council","http://opendatacommunities.org/id/metropolitan-district-council/wolverhampton","SCREWFIX DIRECT",43.17,"Technician","5200","Equipment - Purchase","10/06/2019"
"Wolverhampton City Council","http://opendatacommunities.org/id/metropolitan-district-council/wolverhampton","WWW.LADDER STORE.COM",201.34,"Technician","5072","Equipment - Purchase","10/06/2019"
"Wolverhampton City Council","http://opendatacommunities.org/id/metropolitan-district-council/wolverhampton","WWW.TOOLSTATION.COM",4.17,"Technician","5251","Equipment - Purchase","10/06/2019"
"Wolverhampton City Council","http://opendatacommunities.org/id/metropolitan-district-council/wolverhampton","British Dyslexia Assoc",225,"Private Hire Drivers","8398","Services - Supplies & Services to users","10/06/2019"
"Wolverhampton City Council","http://opendatacommunities.org/id/metropolitan-district-council/wolverhampton","AMZNMktplace",109.1,"Private Hire Vehicles","5999","Equipment - Purchase","10/06/2019"
"Wolverhampton City Council","http://opendatacommunities.org/id/metropolitan-district-council/wolverhampton","ASDA GROCERIES ONLINE",91.34,"Ernest Bold Court","5411","Provisions (Not for resale)","10/06/2019"
"Wolverhampton City Council","http://opendatacommunities.org/id/metropolitan-district-council/wolverhampton","British Dyslexia Assoc",225,"Private Hire Drivers","8398","Services - Supplies & Services to users","10/06/2019"
"Wolverhampton City Council","http://opendatacommunities.org/id/metropolitan-district-council/wolverhampton","DECATHLON",19.97,"Youth Offending Team","5941","Equipment - Purchase","10/06/2019"
"Wolverhampton City Council","http://opendatacommunities.org/id/metropolitan-district-council/wolverhampton","WM MORRISONS STORE",10.25,"Youth Offending Team","5411","Provisions (Not for resale)","10/06/2019"
"Wolverhampton City Council","http://opendatacommunities.org/id/metropolitan-district-council/wolverhampton","PREMIER INN",251.5,"Fostering Team & Allowances","3811","Services - Supplies & Services to users","10/06/2019"
"Wolverhampton City Council","http://opendatacommunities.org/id/metropolitan-district-council/wolverhampton","AMZNMKTPLACE AMAZON.CO.UK",25.98,"Bert Williams Leisure Centre","5999","Equipment - Purchase","10/06/2019"
"Wolverhampton City Council","http://opendatacommunities.org/id/metropolitan-district-council/wolverhampton","ASDA GROCERIES ONLINE",-0.66,"Ernest Bold Court","5411","Provisions (Not for resale)","10/06/2019"
"Wolverhampton City Council","http://opendatacommunities.org/id/metropolitan-district-council/wolverhampton","ASDA GROCERIES ONLINE",61.33,"Ernest Bold Court","5411","Provisions (Not for resale)","10/06/2019"
"Wolverhampton City Council","http://opendatacommunities.org/id/metropolitan-district-council/wolverhampton","000002200500000",50,"Ernest Bold Court","6011","Provisions (Not for resale)","10/06/2019"
"Wolverhampton City Council","http://opendatacommunities.org/id/metropolitan-district-council/wolverhampton","PiktochartCO 1GOAHAM2R",32.44,"Healthy Ageing","5817","Computing - Purchase of Software","10/06/2019"
"Wolverhampton City Council","http://opendatacommunities.org/id/metropolitan-district-council/wolverhampton","Amazon.co.uk M66ZL7L44",16.39,"EIP Locality 6","5969","Equipment - Purchase","10/06/2019"
"Wolverhampton City Council","http://opendatacommunities.org/id/metropolitan-district-council/wolverhampton","AMZNMKTPLACE AMAZON.CO.UK",30.65,"Intensive Family Support Team","5999","Equipment - Purchase","10/06/2019"
"Wolverhampton City Council","http://opendatacommunities.org/id/metropolitan-district-council/wolverhampton","ASDA GROCERIES ONLINE",-12.23,"Upper Pendeford Farm Childrens Home","5411","Provisions (Not for resale)","10/06/2019"
"Wolverhampton City Council","http://opendatacommunities.org/id/metropolitan-district-council/wolverhampton","ASDA GROCERIES ONLINE",224.13,"Upper Pendeford Farm Childrens Home","5411","Provisions (Not for resale)","10/06/2019"
"Wolverhampton City Council","http://opendatacommunities.org/id/metropolitan-district-council/wolverhampton","000002200500000",40,"Emergency Duty Team","6011","Financial Assistance In Exceptional Circ","10/06/2019"
"Wolverhampton City Council","http://opendatacommunities.org/id/metropolitan-district-council/wolverhampton","ASDA GROCERIES ONLINE",5,"Upper Pendeford Farm Childrens Home","5411","Provisions (Not for resale)","10/06/2019"
"Wolverhampton City Council","http://opendatacommunities.org/id/metropolitan-district-council/wolverhampton","NATWEST BANK",50,"Ernest Bold Court","6011","Services - Supplies & Services to users","10/06/2019"
"Wolverhampton City Council","http://opendatacommunities.org/id/metropolitan-district-council/wolverhampton","HIRE EDUCATION LIMITED",87,"Global Budgets","8299","Books","10/06/2019"
"Wolverhampton City Council","http://opendatacommunities.org/id/metropolitan-district-council/wolverhampton","COVE HOUSE",180,"Looked After Team 2","7011","Services - Supplies & Services to users","10/06/2019"
"Wolverhampton City Council","http://opendatacommunities.org/id/metropolitan-district-council/wolverhampton","Virgin Trains",82.2,"Management Support","4112","Public Transport","10/06/2019"
"Wolverhampton City Council","http://opendatacommunities.org/id/metropolitan-district-council/wolverhampton","ASDA GROCERIES ONLINE",163.44,"Duke Street Bungalows","5411","Provisions (Not for resale)","10/06/2019"
"Wolverhampton City Council","http://opendatacommunities.org/id/metropolitan-district-council/wolverhampton","EE STORE R501",8.33,"School Crossing Patrol","4814","Comms - Telephone Call charges","10/06/2019"
"Wolverhampton City Council","http://opendatacommunities.org/id/metropolitan-district-council/wolverhampton","EBUYER (UK) LTD",134.55,"Macmillan Welfare Rights","5722","Stationery","10/06/2019"
"Wolverhampton City Council","http://opendatacommunities.org/id/metropolitan-district-council/wolverhampton","AMZNMktplace",45.48,"Community Enablement","5999","Equipment - Purchase","10/06/2019"
"Wolverhampton City Council","http://opendatacommunities.org/id/metropolitan-district-council/wolverhampton","AMZNMktplace",19.95,"Parks - Ranger Service","5999","Equipment - Purchase","10/06/2019"
"Wolverhampton City Council","http://opendatacommunities.org/id/metropolitan-district-council/wolverhampton","GEN REGISTER OFFICE",12.5,"LAC Transitions Team","9399","Client Allowances","10/06/2019"
"Wolverhampton City Council","http://opendatacommunities.org/id/metropolitan-district-council/wolverhampton","AMZNMktplace",54.52,"Northicote Farm","5999","Materials","10/06/2019"
"Wolverhampton City Council","http://opendatacommunities.org/id/metropolitan-district-council/wolverhampton","AMZNMktplace",8.46,"Northicote Farm","5999","Materials","10/06/2019"
"Wolverhampton City Council","http://opendatacommunities.org/id/metropolitan-district-council/wolverhampton","AMZNMktplace",7.96,"Northicote Farm","5999","Materials","10/06/2019"
"Wolverhampton City Council","http://opendatacommunities.org/id/metropolitan-district-council/wolverhampton","AMZNMktplace",20.99,"Northicote Farm","5999","Equipment - Purchase","10/06/2019"
"Wolverhampton City Council","http://opendatacommunities.org/id/metropolitan-district-council/wolverhampton","LOYD 37 CHURCH STREET",50,"EIP Locality 8","6011","Grant Payments","07/06/2019"
"Wolverhampton City Council","http://opendatacommunities.org/id/metropolitan-district-council/wolverhampton","AMZNMKTPLACE AMAZON.CO.UK",13.48,"EIP Locality 8","5999","Equipment - Purchase","07/06/2019"
"Wolverhampton City Council","http://opendatacommunities.org/id/metropolitan-district-council/wolverhampton","WWW.GOV.UK",10,"Revenues","8999","Services - Professional Fees","07/06/2019"
"Wolverhampton City Council","http://opendatacommunities.org/id/metropolitan-district-council/wolverhampton","WWW.GOV.UK",10,"Revenues","8999","Services - Professional Fees","07/06/2019"
"Wolverhampton City Council","http://opendatacommunities.org/id/metropolitan-district-council/wolverhampton","Trainline",78.5,"Revenues","4112","Public Transport","07/06/2019"
"Wolverhampton City Council","http://opendatacommunities.org/id/metropolitan-district-council/wolverhampton","WOOLWICH CENTRE LIBRARY",33.33,"Contemporary Gallery","8299","Services - Professional Fees","07/06/2019"
"Wolverhampton City Council","http://opendatacommunities.org/id/metropolitan-district-council/wolverhampton","WWW.ICELAND.CO.UK",43.34,"Bradley Resource Centre","5411","Provisions (Not for resale)","07/06/2019"
"Wolverhampton City Council","http://opendatacommunities.org/id/metropolitan-district-council/wolverhampton","Amazon.co.uk M692E1FV4",7.53,"Citizenship, Language & Learning","5969","Equipment - Purchase","07/06/2019"
"Wolverhampton City Council","http://opendatacommunities.org/id/metropolitan-district-council/wolverhampton","NATWEST BANK",250,"CAT","6011","Financial Assistance In Exceptional Circ","07/06/2019"
"Wolverhampton City Council","http://opendatacommunities.org/id/metropolitan-district-council/wolverhampton","HM PASSPORT OFFICE",99.62,"Court Team","9399","Section 17","07/06/2019"
"Wolverhampton City Council","http://opendatacommunities.org/id/metropolitan-district-council/wolverhampton","HOME BARGAINS",8.32,"Bradley Resource Centre","5251","Equipment - Purchase","07/06/2019"
"Wolverhampton City Council","http://opendatacommunities.org/id/metropolitan-district-council/wolverhampton","000002200500000",200,"Childrens with Disabilities Team","6011","No Recourse to Public Funds","07/06/2019"
"Wolverhampton City Council","http://opendatacommunities.org/id/metropolitan-district-council/wolverhampton","000002200500000",250,"Childrens with Disabilities Team","6011","No Recourse to Public Funds","07/06/2019"
"Wolverhampton City Council","http://opendatacommunities.org/id/metropolitan-district-council/wolverhampton","Amazon.co.uk M61WF94D4",22.02,"Regional Adoption Agency","5969","Equipment - Purchase","07/06/2019"
"Wolverhampton City Council","http://opendatacommunities.org/id/metropolitan-district-council/wolverhampton","WEST COAST TRAINS - EN",6.17,"Economic Development","4112","Public Transport","07/06/2019"
"Wolverhampton City Council","http://opendatacommunities.org/id/metropolitan-district-council/wolverhampton","Virgin Trains",8,"Fostering Team & Allowances","4112","Public Transport","07/06/2019"
"Wolverhampton City Council","http://opendatacommunities.org/id/metropolitan-district-council/wolverhampton","SPECSAVERSEVOUGB-",850,"HR Advice","8043","Services - Professional Fees","07/06/2019"
"Wolverhampton City Council","http://opendatacommunities.org/id/metropolitan-district-council/wolverhampton","NAMESCO",34.99,"Communications & Marketing - General","4816","Computing - Purchase of Software","07/06/2019"
"Wolverhampton City Council","http://opendatacommunities.org/id/metropolitan-district-council/wolverhampton","B & Q 1243",51.62,"Cemeteries","5211","Materials","07/06/2019"
"Wolverhampton City Council","http://opendatacommunities.org/id/metropolitan-district-council/wolverhampton","eviivo:Holroyd Arms",-70,"LAC Team","7011","Accommodation Costs","07/06/2019"
"Wolverhampton City Council","http://opendatacommunities.org/id/metropolitan-district-council/wolverhampton","UTILITA ENERGY LIMITED",500,"LAC Team","4900","Electricity","07/06/2019"
"Wolverhampton City Council","http://opendatacommunities.org/id/metropolitan-district-council/wolverhampton","TRAVELODGE",109,"LAC Team","3615","Accommodation Costs","07/06/2019"
"Wolverhampton City Council","http://opendatacommunities.org/id/metropolitan-district-council/wolverhampton","eviivo:Holroyd Arms",70,"LAC Team","7011","Accommodation Costs","07/06/2019"
"Wolverhampton City Council","http://opendatacommunities.org/id/metropolitan-district-council/wolverhampton","Amazon.co.uk M61UN1414",10.07,"Intensive Family Support Team","5969","Equipment - Purchase","07/06/2019"
"Wolverhampton City Council","http://opendatacommunities.org/id/metropolitan-district-council/wolverhampton","AMZNMktplace",79.6,"Upper Pendeford Farm Childrens Home","5999","Equipment - Purchase","07/06/2019"
"Wolverhampton City Council","http://opendatacommunities.org/id/metropolitan-district-council/wolverhampton","THE CHELSEA MAGAZINE C",19.95,"Central Costs","2741","Publications","07/06/2019"
"Wolverhampton City Council","http://opendatacommunities.org/id/metropolitan-district-council/wolverhampton","WWW.AHBRASS.CO.UK",68.98,"Central Costs","5251","Equipment - Purchase","07/06/2019"
"Wolverhampton City Council","http://opendatacommunities.org/id/metropolitan-district-council/wolverhampton","ROYAL CARPETS",441.67,"LAC Transitions Team","5713","Client Allowances","07/06/2019"
"Wolverhampton City Council","http://opendatacommunities.org/id/metropolitan-district-council/wolverhampton","Virgin Trains",36.6,"Strategic Asset Management - General","4112","Public Transport","07/06/2019"
"Wolverhampton City Council","http://opendatacommunities.org/id/metropolitan-district-council/wolverhampton","ACCORA LTD",125,"Independant Living Services","5976","Equipment - R & M","07/06/2019"
"Wolverhampton City Council","http://opendatacommunities.org/id/metropolitan-district-council/wolverhampton","ARGOS WOLVERHAMPTON",42.99,"Duke Street Bungalows","5310","R4010","07/06/2019"
"Wolverhampton City Council","http://opendatacommunities.org/id/metropolitan-district-council/wolverhampton","ENGLISH HERITAGE ONLINE",43.75,"Global Budgets","7991","Books","07/06/2019"
"Wolverhampton City Council","http://opendatacommunities.org/id/metropolitan-district-council/wolverhampton","WWW.NHM.AC.UK",34.58,"Global Budgets","5970","Books","07/06/2019"
"Wolverhampton City Council","http://opendatacommunities.org/id/metropolitan-district-council/wolverhampton","AMZNMktplace",10.46,"Global Budgets","5999","Equipment - Purchase","07/06/2019"
"Wolverhampton City Council","http://opendatacommunities.org/id/metropolitan-district-council/wolverhampton","POST OFFICE COUNTER",8.7,"Looked After Team 2","9402","Comms - Postage","07/06/2019"
"Wolverhampton City Council","http://opendatacommunities.org/id/metropolitan-district-council/wolverhampton","AMZNMktplace",3.65,"Inclusion Support","5999","Computing - Consumables","07/06/2019"
"Wolverhampton City Council","http://opendatacommunities.org/id/metropolitan-district-council/wolverhampton","W HAMPTON1853",10.25,"Car Parks Operational Staff","5211","Equipment - Purchase","07/06/2019"
"Wolverhampton City Council","http://opendatacommunities.org/id/metropolitan-district-council/wolverhampton","EB  MENTAL HEALTH IN P",200,"Member Training","7399","Training Expenses","07/06/2019"
"Wolverhampton City Council","http://opendatacommunities.org/id/metropolitan-district-council/wolverhampton","Trainline",67.87,"Inclusion Support","4112","Public Transport","07/06/2019"
"Wolverhampton City Council","http://opendatacommunities.org/id/metropolitan-district-council/wolverhampton","AMZNMktplace",11.78,"Community Enablement","5999","Equipment - Purchase","07/06/2019"
"Wolverhampton City Council","http://opendatacommunities.org/id/metropolitan-district-council/wolverhampton","CITY OF WOLVERHAMPTON",13.33,"LAC Transitions Team","9399","Client Allowances","07/06/2019"
"Wolverhampton City Council","http://opendatacommunities.org/id/metropolitan-district-council/wolverhampton","WWW.WMCA.CO.UK",675,"Business Manager - Place","4112","Accommodation Costs","07/06/2019"
"Wolverhampton City Council","http://opendatacommunities.org/id/metropolitan-district-council/wolverhampton","Virgin Trains",121.5,"Members Expenses","4112","Public Transport","07/06/2019"
"Wolverhampton City Council","http://opendatacommunities.org/id/metropolitan-district-council/wolverhampton","WICKES WOLVERHAMPTON",54.64,"Northicote Farm","5211","Equipment - Purchase","07/06/2019"
"Wolverhampton City Council","http://opendatacommunities.org/id/metropolitan-district-council/wolverhampton","TFM FARM   COUNTRY",31.44,"Northicote Farm","0763","Equipment - Purchase","07/06/2019"
"Wolverhampton City Council","http://opendatacommunities.org/id/metropolitan-district-council/wolverhampton","Trainline.com",148.56,"Revenues","4112","Public Transport","06/06/2019"
"Wolverhampton City Council","http://opendatacommunities.org/id/metropolitan-district-council/wolverhampton","Trainline",85.52,"Return of current shows","4112","Public Transport","06/06/2019"
"Wolverhampton City Council","http://opendatacommunities.org/id/metropolitan-district-council/wolverhampton","THE WORKS",39.41,"Key to Inspiration","5310","Equipment - Purchase","06/06/2019"
"Wolverhampton City Council","http://opendatacommunities.org/id/metropolitan-district-council/wolverhampton","CLQ RESTAURANT",100,"IMPACT","8220","Training Expenses","06/06/2019"
"Wolverhampton City Council","http://opendatacommunities.org/id/metropolitan-district-council/wolverhampton","SAFETOTS",8.25,"Technician","5641","Equipment - Purchase","06/06/2019"
"Wolverhampton City Council","http://opendatacommunities.org/id/metropolitan-district-council/wolverhampton","WWW.EAFIXINGS.CO.UK",51.48,"Private Hire Vehicles","5085","Equipment - Purchase","06/06/2019"
"Wolverhampton City Council","http://opendatacommunities.org/id/metropolitan-district-council/wolverhampton","EDMUNDSON ELECTRICAL L",9.85,"Street Lighting Maintenance","5065","Equipment - R & M","06/06/2019"
"Wolverhampton City Council","http://opendatacommunities.org/id/metropolitan-district-council/wolverhampton","SPAR",211.2,"Towers Outdoor Education Centre","5411","Provisions (Not for resale)","06/06/2019"
"Wolverhampton City Council","http://opendatacommunities.org/id/metropolitan-district-council/wolverhampton","WWW.ARGOS.CO.UK",63.95,"Bradley Resource Centre","5310","Equipment - Purchase","06/06/2019"
"Wolverhampton City Council","http://opendatacommunities.org/id/metropolitan-district-council/wolverhampton","DULUX DECORATOR CENTRE",81.99,"Towers Outdoor Education Centre","5198","Fixtures and Fittings - Purchases","06/06/2019"
"Wolverhampton City Council","http://opendatacommunities.org/id/metropolitan-district-council/wolverhampton","CO-OP GROUP 070228",6.85,"Towers Outdoor Education Centre","5411","Provisions (Not for resale)","06/06/2019"
"Wolverhampton City Council","http://opendatacommunities.org/id/metropolitan-district-council/wolverhampton","O E METCALFE",194.52,"Towers Outdoor Education Centre","5499","Provisions (Not for resale)","06/06/2019"
"Wolverhampton City Council","http://opendatacommunities.org/id/metropolitan-district-council/wolverhampton","HARLECH FOODSERVICE LTD",154.78,"Towers Outdoor Education Centre","5422","Provisions (Not for resale)","06/06/2019"
"Wolverhampton City Council","http://opendatacommunities.org/id/metropolitan-district-council/wolverhampton","HIRE STATION LTD",25,"Towers Outdoor Education Centre","7394","Fixtures and Fittings - Purchases","06/06/2019"
"Wolverhampton City Council","http://opendatacommunities.org/id/metropolitan-district-council/wolverhampton","FUEL CARD SERVICES LTD",308.84,"Towers Outdoor Education Centre","7399","Petrol","06/06/2019"
"Wolverhampton City Council","http://opendatacommunities.org/id/metropolitan-district-council/wolverhampton","TESCO STORES 5194",3.6,"Towers Outdoor Education Centre","5411","Provisions (Not for resale)","06/06/2019"
"Wolverhampton City Council","http://opendatacommunities.org/id/metropolitan-district-council/wolverhampton","HN NUTTALL LTD",501.46,"Towers Outdoor Education Centre","5085","Provisions (Not for resale)","06/06/2019"
"Wolverhampton City Council","http://opendatacommunities.org/id/metropolitan-district-council/wolverhampton","C L JONES HEAD OFFICE",165.47,"Towers Outdoor Education Centre","5211","Fixtures and Fittings - Purchases","06/06/2019"
"Wolverhampton City Council","http://opendatacommunities.org/id/metropolitan-district-council/wolverhampton","WEST COAST TRAINS",3.58,"Economic Development","4112","Public Transport","06/06/2019"
"Wolverhampton City Council","http://opendatacommunities.org/id/metropolitan-district-council/wolverhampton","W HAMPTON1109",34.93,"Ground Maintenance East","5211","Materials","06/06/2019"
"Wolverhampton City Council","http://opendatacommunities.org/id/metropolitan-district-council/wolverhampton","B & Q 1243",21.94,"Public Conveniences","5211","Materials","06/06/2019"
"Wolverhampton City Council","http://opendatacommunities.org/id/metropolitan-district-council/wolverhampton","Amazon.co.uk M667X8FO4",87,"Central Baths","5969","Equipment - Purchase","06/06/2019"
"Wolverhampton City Council","http://opendatacommunities.org/id/metropolitan-district-council/wolverhampton","POST OFFICE COUNTER",42.96,"Upper Pendeford Farm Childrens Home","9402","Comms - Postage","06/06/2019"
"Wolverhampton City Council","http://opendatacommunities.org/id/metropolitan-district-council/wolverhampton","AMZNMktplace",13.32,"Upper Pendeford Farm Childrens Home","5999","Equipment - Purchase","06/06/2019"
"Wolverhampton City Council","http://opendatacommunities.org/id/metropolitan-district-council/wolverhampton","AMZNMktplace",35.97,"Upper Pendeford Farm Childrens Home","5999","Equipment - Purchase","06/06/2019"
"Wolverhampton City Council","http://opendatacommunities.org/id/metropolitan-district-council/wolverhampton","TIMPSON LTD",10,"Transportation General","7251","Fixtures and Fittings - R&M","06/06/2019"
"Wolverhampton City Council","http://opendatacommunities.org/id/metropolitan-district-council/wolverhampton","LOYD QUEEN SQUARE",150,"Duke Street Bungalows","6011","Provisions (Not for resale)","06/06/2019"
"Wolverhampton City Council","http://opendatacommunities.org/id/metropolitan-district-council/wolverhampton","COMPANY CARDS LTD",142.78,"Technical Support","2741","Publications","06/06/2019"
"Wolverhampton City Council","http://opendatacommunities.org/id/metropolitan-district-council/wolverhampton","CITY OF WOLVERHAMPTON",16,"Looked After Team 2","9399","Financial Assistance In Exceptional Circ","06/06/2019"
"Wolverhampton City Council","http://opendatacommunities.org/id/metropolitan-district-council/wolverhampton","Trainline.com",157.29,"Head of Service - CINCP","4112","Public Transport","06/06/2019"
"Wolverhampton City Council","http://opendatacommunities.org/id/metropolitan-district-council/wolverhampton","EE STORE R501",8.33,"School Crossing Patrol","4814","Comms - Telephone Call charges","06/06/2019"
"Wolverhampton City Council","http://opendatacommunities.org/id/metropolitan-district-council/wolverhampton","J VAN VLIET BIRMINGHAM",146.32,"Creative Studies Delivery Area","5399","Materials for resale","06/06/2019"
"Wolverhampton City Council","http://opendatacommunities.org/id/metropolitan-district-council/wolverhampton","AMZNMktplace",10.82,"Community Enablement","5999","Equipment - Purchase","06/06/2019"
"Wolverhampton City Council","http://opendatacommunities.org/id/metropolitan-district-council/wolverhampton","AMZNMktplace",4.96,"Community Enablement","5999","Equipment - Purchase","06/06/2019"
"Wolverhampton City Council","http://opendatacommunities.org/id/metropolitan-district-council/wolverhampton","AMZNMktplace",4.99,"Parks - Ranger Service","5999","Equipment - Purchase","06/06/2019"
"Wolverhampton City Council","http://opendatacommunities.org/id/metropolitan-district-council/wolverhampton","GEN REGISTER OFFICE",35,"LAC Transitions Team","9399","Client Allowances","06/06/2019"
"Wolverhampton City Council","http://opendatacommunities.org/id/metropolitan-district-council/wolverhampton","AMZNMKTPLACE AMAZON.CO.UK",7.9,"Members Expenses","5999","Equipment - Purchase","06/06/2019"
"Wolverhampton City Council","http://opendatacommunities.org/id/metropolitan-district-council/wolverhampton","B&M RETAIL LTD",34.99,"Children & Young People Support Costs","5310","Client Allowances","05/06/2019"
"Wolverhampton City Council","http://opendatacommunities.org/id/metropolitan-district-council/wolverhampton","NATURAL HIST. MUSEUM",853.2,"-","5970","Materials","05/06/2019"
"Wolverhampton City Council","http://opendatacommunities.org/id/metropolitan-district-council/wolverhampton","ARGOS RETAIL GROUP",66.67,"LAC Transitions Team","5310","Equipment - Purchase","05/06/2019"
"Wolverhampton City Council","http://opendatacommunities.org/id/metropolitan-district-council/wolverhampton","ARGOS LTD",33.32,"LAC Transitions Team","5310","Equipment - Purchase","05/06/2019"
"Wolverhampton City Council","http://opendatacommunities.org/id/metropolitan-district-council/wolverhampton","WWW.PRESERVATIONEQUIPM",90.7,"Collections","4225","Equipment - Purchase","05/06/2019"
"Wolverhampton City Council","http://opendatacommunities.org/id/metropolitan-district-council/wolverhampton","WM MORRISON FOOD.COM",156.73,"Discretionary Fund","5411","Materials","05/06/2019"
"Wolverhampton City Council","http://opendatacommunities.org/id/metropolitan-district-council/wolverhampton","THE CAMBRIDGE",25.39,"LAC Transitions Team","5813","Client Allowances","05/06/2019"
"Wolverhampton City Council","http://opendatacommunities.org/id/metropolitan-district-council/wolverhampton","Trainline.com",35.02,"LAC Transitions Team","4112","Client Allowances","05/06/2019"
"Wolverhampton City Council","http://opendatacommunities.org/id/metropolitan-district-council/wolverhampton","CURRYS ONLINE",58.32,"Regional Adoption Agency","5732","Equipment - Purchase","05/06/2019"
"Wolverhampton City Council","http://opendatacommunities.org/id/metropolitan-district-council/wolverhampton","Virgin Trains",304.1,"Regional Adoption Agency","4112","Public Transport","05/06/2019"
"Wolverhampton City Council","http://opendatacommunities.org/id/metropolitan-district-council/wolverhampton","TESCO STORES 5194",211.6,"Towers Outdoor Education Centre","5411","Provisions (Not for resale)","05/06/2019"
"Wolverhampton City Council","http://opendatacommunities.org/id/metropolitan-district-council/wolverhampton","WWW.WORLDOFPOWER.CO.UK",147.68,"Towers Outdoor Education Centre","5722","Equipment - Purchase","05/06/2019"
"Wolverhampton City Council","http://opendatacommunities.org/id/metropolitan-district-council/wolverhampton","POST OFFICE COUNTER",380,"Fostering Team & Allowances","9402","Comms - Postage","05/06/2019"
"Wolverhampton City Council","http://opendatacommunities.org/id/metropolitan-district-council/wolverhampton","WWW.MYTAKEAWAY.COM",32.95,"B-Safe","5814","Catering","05/06/2019"
"Wolverhampton City Council","http://opendatacommunities.org/id/metropolitan-district-council/wolverhampton","TVLICENSING.CO.UK",128.75,"LAC Transitions Team","7392","Client Allowances","05/06/2019"
"Wolverhampton City Council","http://opendatacommunities.org/id/metropolitan-district-council/wolverhampton","WHERETHETRADEBUYS.CO.UK",21.84,"Starting and Developing Well(0-24 group)","5111","Stationery","05/06/2019"
"Wolverhampton City Council","http://opendatacommunities.org/id/metropolitan-district-council/wolverhampton","AMZNMktplace",13.89,"Upper Pendeford Farm Childrens Home","5999","Equipment - Purchase","05/06/2019"
"Wolverhampton City Council","http://opendatacommunities.org/id/metropolitan-district-council/wolverhampton","AMZNMktplace",68.88,"Upper Pendeford Farm Childrens Home","5999","Equipment - Purchase","05/06/2019"
"Wolverhampton City Council","http://opendatacommunities.org/id/metropolitan-district-council/wolverhampton","AMZNMktplace",8.57,"Upper Pendeford Farm Childrens Home","5999","Equipment - Purchase","05/06/2019"
"Wolverhampton City Council","http://opendatacommunities.org/id/metropolitan-district-council/wolverhampton","Trainline",174.5,"Safeguarding Partnership Board","4112","Public Transport","05/06/2019"
"Wolverhampton City Council","http://opendatacommunities.org/id/metropolitan-district-council/wolverhampton","ROYAL CARPETS",150,"LAC Transitions Team","5713","Client Allowances","05/06/2019"
"Wolverhampton City Council","http://opendatacommunities.org/id/metropolitan-district-council/wolverhampton","WWW.ARGOS.CO.UK",-370.34,"LAC Transitions Team","5310","Client Allowances","05/06/2019"
"Wolverhampton City Council","http://opendatacommunities.org/id/metropolitan-district-council/wolverhampton","WWW.ARGOS.CO.UK",370.34,"LAC Transitions Team","5310","Client Allowances","05/06/2019"
"Wolverhampton City Council","http://opendatacommunities.org/id/metropolitan-district-council/wolverhampton","WWW.ARGOS.CO.UK",16.67,"LAC Transitions Team","5310","Client Allowances","05/06/2019"
"Wolverhampton City Council","http://opendatacommunities.org/id/metropolitan-district-council/wolverhampton","WWW.ARGOS.CO.UK",131.62,"LAC Transitions Team","5310","Client Allowances","05/06/2019"
"Wolverhampton City Council","http://opendatacommunities.org/id/metropolitan-district-council/wolverhampton","WWW.ARGOS.CO.UK",370.34,"LAC Transitions Team","5310","Client Allowances","05/06/2019"
"Wolverhampton City Council","http://opendatacommunities.org/id/metropolitan-district-council/wolverhampton","EDMUNDSON ELECTRICAL L",15.05,"Cleaning of Buildings - General","5065","Equipment - R & M","05/06/2019"
"Wolverhampton City Council","http://opendatacommunities.org/id/metropolitan-district-council/wolverhampton","JOHNSTONES DEC CENTRE",10,"Cleaning of Buildings - General","5231","Materials","05/06/2019"
"Wolverhampton City Council","http://opendatacommunities.org/id/metropolitan-district-council/wolverhampton","Trainline",20.3,"SEN Sensory Inclusion","4112","Public Transport","05/06/2019"
"Wolverhampton City Council","http://opendatacommunities.org/id/metropolitan-district-council/wolverhampton","Virgin Trains",11.3,"City Centre","4112","Services - Fees and Charges","05/06/2019"
"Wolverhampton City Council","http://opendatacommunities.org/id/metropolitan-district-council/wolverhampton","DUDLEY MBC  INTERN",35,"Head of Service - CINCP","8999","Services - Professional Fees","05/06/2019"
"Wolverhampton City Council","http://opendatacommunities.org/id/metropolitan-district-council/wolverhampton","Trainline",53.16,"Inclusion Support","4112","Public Transport","05/06/2019"
"Wolverhampton City Council","http://opendatacommunities.org/id/metropolitan-district-council/wolverhampton","Trainline",59.22,"Inclusion Support","4112","Public Transport","05/06/2019"
"Wolverhampton City Council","http://opendatacommunities.org/id/metropolitan-district-council/wolverhampton","AMZNMKTPLACE AMAZON.CO.UK",11.94,"Community Enablement","5999","Equipment - Purchase","05/06/2019"
"Wolverhampton City Council","http://opendatacommunities.org/id/metropolitan-district-council/wolverhampton","AMZNMktplace",9.57,"Community Enablement","5999","Equipment - Purchase","05/06/2019"
"Wolverhampton City Council","http://opendatacommunities.org/id/metropolitan-district-council/wolverhampton","HANDISCOVER.COM",-192.71,"Mayoral Expenses","5734","Accommodation Costs","05/06/2019"
"Wolverhampton City Council","http://opendatacommunities.org/id/metropolitan-district-council/wolverhampton","WWW.NISBETS.COM",1131.17,"Key to Inspiration","5964","Equipment - Purchase","04/06/2019"
"Wolverhampton City Council","http://opendatacommunities.org/id/metropolitan-district-council/wolverhampton","SAINSBURYS SACAT (2340",26,"Key to Inspiration","5411","Cleaning Supplies and Materials","04/06/2019"
"Wolverhampton City Council","http://opendatacommunities.org/id/metropolitan-district-council/wolverhampton","ASDA GROCERIES ONLINE",118.91,"Bradley Resource Centre","5411","Provisions (Not for resale)","04/06/2019"
"Wolverhampton City Council","http://opendatacommunities.org/id/metropolitan-district-council/wolverhampton","WWW.BRISTOWSUTOR.CO.UK",0,"Revenues","9399","R9382","04/06/2019"
"Wolverhampton City Council","http://opendatacommunities.org/id/metropolitan-district-council/wolverhampton","ROYAL BK OF SCOTLAND",250,"CIN/CP Social Work Unit - Area 6","6011","Section 17","04/06/2019"
"Wolverhampton City Council","http://opendatacommunities.org/id/metropolitan-district-council/wolverhampton","Trainline.com",97.27,"Electoral Registration","4112","Public Transport","04/06/2019"
"Wolverhampton City Council","http://opendatacommunities.org/id/metropolitan-district-council/wolverhampton","Amazon.co.uk MN6NW1Y24",25.53,"Towers Outdoor Education Centre","5969","Fixtures and Fittings - Purchases","04/06/2019"
"Wolverhampton City Council","http://opendatacommunities.org/id/metropolitan-district-council/wolverhampton","Trainline",127.9,"Business Support Services","4112","Public Transport","04/06/2019"
"Wolverhampton City Council","http://opendatacommunities.org/id/metropolitan-district-council/wolverhampton","Trainline",9,"Business Support Services","4112","Public Transport","04/06/2019"
"Wolverhampton City Council","http://opendatacommunities.org/id/metropolitan-district-council/wolverhampton","WOLVERHAMPTON T/O",9,"City Direct","4112","Public Transport","04/06/2019"
"Wolverhampton City Council","http://opendatacommunities.org/id/metropolitan-district-council/wolverhampton","ASDA SUPERSTORE",52.5,"LAC Transitions Team","5411","Client Allowances","04/06/2019"
"Wolverhampton City Council","http://opendatacommunities.org/id/metropolitan-district-council/wolverhampton","ASDA SUPERSTORE",247.02,"LAC Transitions Team","5411","Client Allowances","04/06/2019"
"Wolverhampton City Council","http://opendatacommunities.org/id/metropolitan-district-council/wolverhampton","SAINSBURYS (2340)",16.5,"Mayoral Expenses","5411","Provisions (Not for resale)","04/06/2019"
"Wolverhampton City Council","http://opendatacommunities.org/id/metropolitan-district-council/wolverhampton","WWW.GEAR4MUSIC.COM",92.39,"Strategic ICTS (ICT Serv Budget)","5733","Equipment - Purchase","04/06/2019"
"Wolverhampton City Council","http://opendatacommunities.org/id/metropolitan-district-council/wolverhampton","WWW.DOWNING.COM",250,"LAC Transitions Team","7011","Client Allowances","04/06/2019"
"Wolverhampton City Council","http://opendatacommunities.org/id/metropolitan-district-council/wolverhampton","WWW.WMCA.CO.UK",675,"Corporate Procurement Unit","4112","Public Transport","04/06/2019"
"Wolverhampton City Council","http://opendatacommunities.org/id/metropolitan-district-council/wolverhampton","POUNDLAND LTD 1463",2,"Business Support Services","5310","Catering","04/06/2019"
"Wolverhampton City Council","http://opendatacommunities.org/id/metropolitan-district-council/wolverhampton","BRITANNIA",78,"MASH","7011","Section 17","04/06/2019"
"Wolverhampton City Council","http://opendatacommunities.org/id/metropolitan-district-council/wolverhampton","HUGHES",416.67,"LAC Transitions Team","5732","Client Allowances","04/06/2019"
"Wolverhampton City Council","http://opendatacommunities.org/id/metropolitan-district-council/wolverhampton","ASDA GROCERIES ONLINE",29.95,"Ernest Bold Court","5411","Provisions (Not for resale)","04/06/2019"
"Wolverhampton City Council","http://opendatacommunities.org/id/metropolitan-district-council/wolverhampton","LOTUS GARDEN",23,"Ernest Bold Court","5814","Provisions (Not for resale)","04/06/2019"
"Wolverhampton City Council","http://opendatacommunities.org/id/metropolitan-district-council/wolverhampton","Trainline.com",107.35,"Head of Service - CINCP","4112","Public Transport","04/06/2019"
"Wolverhampton City Council","http://opendatacommunities.org/id/metropolitan-district-council/wolverhampton","WICKES WOLVERHAMPTON",23.17,"Learning Disabilities Management","5211","Equipment - R & M","04/06/2019"
"Wolverhampton City Council","http://opendatacommunities.org/id/metropolitan-district-council/wolverhampton","Virgin Trains",47.6,"LAC Team","4112","Public Transport","04/06/2019"
"Wolverhampton City Council","http://opendatacommunities.org/id/metropolitan-district-council/wolverhampton","NATWEST BANK",200,"Democratic Support","6011","Public Transport","04/06/2019"
"Wolverhampton City Council","http://opendatacommunities.org/id/metropolitan-district-council/wolverhampton","Trainline",233.01,"Service Development Team","4112","Public Transport","04/06/2019"
"Wolverhampton City Council","http://opendatacommunities.org/id/metropolitan-district-council/wolverhampton","AMZNMktplace",14.98,"Ernest Bold Court","5999","Equipment - Purchase","04/06/2019"
"Wolverhampton City Council","http://opendatacommunities.org/id/metropolitan-district-council/wolverhampton","REDWINGS LODGE",35.79,"CIN/CP Social Work Unit - Area 8","7011","Section 17","04/06/2019"
"Wolverhampton City Council","http://opendatacommunities.org/id/metropolitan-district-council/wolverhampton","000002200500000",90,"Delivery & OCE Development","6011","Financial Assistance In Exceptional Circ","04/06/2019"
"Wolverhampton City Council","http://opendatacommunities.org/id/metropolitan-district-council/wolverhampton","GEN REGISTER OFFICE",11.67,"LAC Transitions Team","9399","Client Allowances","04/06/2019"
"Wolverhampton City Council","http://opendatacommunities.org/id/metropolitan-district-council/wolverhampton","BOOK PEOPLE VOUCHER",16,"EIP Locality 7","5942","Grant Payments","04/06/2019"
"Wolverhampton City Council","http://opendatacommunities.org/id/metropolitan-district-council/wolverhampton","WWW.ICO.GOV.UK",40,"Members Expenses","9399","Subscriptions","04/06/2019"
"Wolverhampton City Council","http://opendatacommunities.org/id/metropolitan-district-council/wolverhampton","WWW.ICO.GOV.UK",40,"Members Expenses","9399","Subscriptions","04/06/2019"
"Wolverhampton City Council","http://opendatacommunities.org/id/metropolitan-district-council/wolverhampton","WWW.ICO.GOV.UK",40,"Members Expenses","9399","Subscriptions","04/06/2019"
"Wolverhampton City Council","http://opendatacommunities.org/id/metropolitan-district-council/wolverhampton","WWW.ICO.GOV.UK",40,"Members Expenses","9399","Subscriptions","04/06/2019"
"Wolverhampton City Council","http://opendatacommunities.org/id/metropolitan-district-council/wolverhampton","WWW.ICO.GOV.UK",40,"Members Expenses","9399","Subscriptions","04/06/2019"
"Wolverhampton City Council","http://opendatacommunities.org/id/metropolitan-district-council/wolverhampton","WWW.ICO.GOV.UK",40,"Members Expenses","9399","Subscriptions","04/06/2019"
"Wolverhampton City Council","http://opendatacommunities.org/id/metropolitan-district-council/wolverhampton","WWW.ICO.GOV.UK",40,"Members Expenses","9399","Subscriptions","04/06/2019"
"Wolverhampton City Council","http://opendatacommunities.org/id/metropolitan-district-council/wolverhampton","WWW.ICO.GOV.UK",40,"Members Expenses","9399","Subscriptions","04/06/2019"
"Wolverhampton City Council","http://opendatacommunities.org/id/metropolitan-district-council/wolverhampton","WWW.ICO.GOV.UK",40,"Members Expenses","9399","Subscriptions","04/06/2019"
"Wolverhampton City Council","http://opendatacommunities.org/id/metropolitan-district-council/wolverhampton","WWW.ICO.GOV.UK",40,"Members Expenses","9399","Subscriptions","04/06/2019"
"Wolverhampton City Council","http://opendatacommunities.org/id/metropolitan-district-council/wolverhampton","WWW.ICO.GOV.UK",40,"Members Expenses","9399","Subscriptions","04/06/2019"
"Wolverhampton City Council","http://opendatacommunities.org/id/metropolitan-district-council/wolverhampton","WWW.ICO.GOV.UK",40,"Members Expenses","9399","Subscriptions","04/06/2019"
"Wolverhampton City Council","http://opendatacommunities.org/id/metropolitan-district-council/wolverhampton","WWW.ICO.GOV.UK",40,"Members Expenses","9399","Subscriptions","04/06/2019"
"Wolverhampton City Council","http://opendatacommunities.org/id/metropolitan-district-council/wolverhampton","WWW.ICO.GOV.UK",40,"Members Expenses","9399","Subscriptions","04/06/2019"
"Wolverhampton City Council","http://opendatacommunities.org/id/metropolitan-district-council/wolverhampton","WWW.ICO.GOV.UK",40,"Members Expenses","9399","Subscriptions","04/06/2019"
"Wolverhampton City Council","http://opendatacommunities.org/id/metropolitan-district-council/wolverhampton","CARVER/WOLVERHAMPTON/L",-17.03,"Northicote Farm","5211","Equipment - Purchase","04/06/2019"
"Wolverhampton City Council","http://opendatacommunities.org/id/metropolitan-district-council/wolverhampton","WWW.ICO.GOV.UK",40,"Members Expenses","9399","Subscriptions","04/06/2019"
"Wolverhampton City Council","http://opendatacommunities.org/id/metropolitan-district-council/wolverhampton","London Northwestern Ra",-8.9,"Court Team","4112","Public Transport","03/06/2019"
"Wolverhampton City Council","http://opendatacommunities.org/id/metropolitan-district-council/wolverhampton","London Northwestern Ra",36.8,"Court Team","4112","Public Transport","03/06/2019"
"Wolverhampton City Council","http://opendatacommunities.org/id/metropolitan-district-council/wolverhampton","NATWEST BANK",250,"NRPF","6011","Financial Assistance In Exceptional Circ","03/06/2019"
"Wolverhampton City Council","http://opendatacommunities.org/id/metropolitan-district-council/wolverhampton","FACEBK VA4R6K6G52",30,"Outdoor Events Admin","7311","Marketing \ Non-staff advertising","03/06/2019"
"Wolverhampton City Council","http://opendatacommunities.org/id/metropolitan-district-council/wolverhampton","MARKS&SPENCER PLC SACA",24.96,"Mayoral Expenses","5411","Hospitality","03/06/2019"
"Wolverhampton City Council","http://opendatacommunities.org/id/metropolitan-district-council/wolverhampton","ARGOS LTD",161.61,"LAC Transitions Team","5310","Equipment - Purchase","03/06/2019"
"Wolverhampton City Council","http://opendatacommunities.org/id/metropolitan-district-council/wolverhampton","Foot Locker 4203",50.03,"LAC Transitions Team","5661","Client Allowances","03/06/2019"
"Wolverhampton City Council","http://opendatacommunities.org/id/metropolitan-district-council/wolverhampton","PEACOCK STORES",11.67,"LAC Transitions Team","5331","Client Allowances","03/06/2019"
"Wolverhampton City Council","http://opendatacommunities.org/id/metropolitan-district-council/wolverhampton","SPORTSDIRECT 231",21.67,"LAC Transitions Team","5941","Client Allowances","03/06/2019"
"Wolverhampton City Council","http://opendatacommunities.org/id/metropolitan-district-council/wolverhampton","WATERSTONES",95,"IMPACT","5942","Books","03/06/2019"
"Wolverhampton City Council","http://opendatacommunities.org/id/metropolitan-district-council/wolverhampton","YOURS CLOTHING",189.9,"LAC Transitions Team","5621","Client Allowances","03/06/2019"
"Wolverhampton City Council","http://opendatacommunities.org/id/metropolitan-district-council/wolverhampton","YOURS CLOTHING",87.5,"LAC Transitions Team","5621","Client Allowances","03/06/2019"
"Wolverhampton City Council","http://opendatacommunities.org/id/metropolitan-district-council/wolverhampton","YOURS CLOTHING",4.99,"LAC Transitions Team","5621","Client Allowances","03/06/2019"
"Wolverhampton City Council","http://opendatacommunities.org/id/metropolitan-district-council/wolverhampton","THE CLARKS SHOP",36.67,"LAC Transitions Team","5661","Client Allowances","03/06/2019"
"Wolverhampton City Council","http://opendatacommunities.org/id/metropolitan-district-council/wolverhampton","HM PASSPORT OFFICE",58.5,"Court Team","9399","Section 17","03/06/2019"
"Wolverhampton City Council","http://opendatacommunities.org/id/metropolitan-district-council/wolverhampton","NATWEST BANK",200,"CIN/CP Social Work Unit - Area 3","6011","Client Allowances","03/06/2019"
"Wolverhampton City Council","http://opendatacommunities.org/id/metropolitan-district-council/wolverhampton","Virgin Trains",75.7,"Fostering Team & Allowances","4112","Public Transport","03/06/2019"
"Wolverhampton City Council","http://opendatacommunities.org/id/metropolitan-district-council/wolverhampton","POST OFFICE COUNTER",7.4,"Regional Adoption Agency","9402","Comms - Postage","03/06/2019"
"Wolverhampton City Council","http://opendatacommunities.org/id/metropolitan-district-council/wolverhampton","AMZNMktplace",21.66,"Communications & Marketing - General","5999","Equipment - Purchase","03/06/2019"
"Wolverhampton City Council","http://opendatacommunities.org/id/metropolitan-district-council/wolverhampton","GOOGLE  ADS9680351324",500,"Communications & Marketing - General","5968","Subscriptions","03/06/2019"
"Wolverhampton City Council","http://opendatacommunities.org/id/metropolitan-district-council/wolverhampton","WATERSTONES",300,"Communications & Marketing - General","5942","Books","03/06/2019"
"Wolverhampton City Council","http://opendatacommunities.org/id/metropolitan-district-council/wolverhampton","FACEBK AHEA6KWA82",50,"Communications & Marketing - General","7311","Marketing \ Non-staff advertising","03/06/2019"
"Wolverhampton City Council","http://opendatacommunities.org/id/metropolitan-district-council/wolverhampton","FACEBK 7VSR4MWAR2",80.42,"Communications & Marketing - General","7311","Marketing \ Non-staff advertising","03/06/2019"
"Wolverhampton City Council","http://opendatacommunities.org/id/metropolitan-district-council/wolverhampton","Virgin Trains",279.2,"HR Advice","4112","Public Transport","03/06/2019"
"Wolverhampton City Council","http://opendatacommunities.org/id/metropolitan-district-council/wolverhampton","TFL ROAD CHG - STD WEB",14,"Mayoral Expenses","4784","TPP - Payments to Local Authorities","03/06/2019"
"Wolverhampton City Council","http://opendatacommunities.org/id/metropolitan-district-council/wolverhampton","POUNDLAND LTD 1463",2.5,"Business Support Services","5310","Catering","03/06/2019"
"Wolverhampton City Council","http://opendatacommunities.org/id/metropolitan-district-council/wolverhampton","Trainline",36.12,"LAC Transitions Team","4112","Public Transport","03/06/2019"
"Wolverhampton City Council","http://opendatacommunities.org/id/metropolitan-district-council/wolverhampton","ASDA SUPERSTORE",5,"Cemeteries","5411","Provisions (Not for resale)","03/06/2019"
"Wolverhampton City Council","http://opendatacommunities.org/id/metropolitan-district-council/wolverhampton","LAPTOPSCREEN.CO.UK",241.66,"Strategic ICTS (ICT Serv Budget)","5734","Computing - Purchase of Hardware","03/06/2019"
"Wolverhampton City Council","http://opendatacommunities.org/id/metropolitan-district-council/wolverhampton","APPLE.COM/UK",52.44,"Strategic ICTS (ICT Serv Budget)","5732","Equipment - Purchase","03/06/2019"
"Wolverhampton City Council","http://opendatacommunities.org/id/metropolitan-district-council/wolverhampton","Virgin Trains",68.9,"Corporate Procurement Unit","4112","Public Transport","03/06/2019"
"Wolverhampton City Council","http://opendatacommunities.org/id/metropolitan-district-council/wolverhampton","ASDA GROCERIES ONLINE",-7.36,"Upper Pendeford Farm Childrens Home","5411","Provisions (Not for resale)","03/06/2019"
"Wolverhampton City Council","http://opendatacommunities.org/id/metropolitan-district-council/wolverhampton","WM MORRISONS STORE",65.4,"Ernest Bold Court","5411","Provisions (Not for resale)","03/06/2019"
"Wolverhampton City Council","http://opendatacommunities.org/id/metropolitan-district-council/wolverhampton","ASDA GROCERIES ONLINE",247.01,"Upper Pendeford Farm Childrens Home","5411","Provisions (Not for resale)","03/06/2019"
"Wolverhampton City Council","http://opendatacommunities.org/id/metropolitan-district-council/wolverhampton","Amazon.co.uk MN3P38W94",153.02,"Children & Young People Support Costs","5969","Equipment - Purchase","03/06/2019"
"Wolverhampton City Council","http://opendatacommunities.org/id/metropolitan-district-council/wolverhampton","ASDA SUPERSTORE",5.14,"Mayoral Expenses","5411","Hospitality","03/06/2019"
"Wolverhampton City Council","http://opendatacommunities.org/id/metropolitan-district-council/wolverhampton","WWW.WOLVERHAMPTON.GOV.UK",59.7,"LAC Transitions Team","9399","Client Allowances","03/06/2019"
"Wolverhampton City Council","http://opendatacommunities.org/id/metropolitan-district-council/wolverhampton","HUGHES",416.67,"LAC Transitions Team","5732","Client Allowances","03/06/2019"
"Wolverhampton City Council","http://opendatacommunities.org/id/metropolitan-district-council/wolverhampton","WWW.CARESHOP.CO.UK",23.13,"Ernest Bold Court","5999","Materials","03/06/2019"
"Wolverhampton City Council","http://opendatacommunities.org/id/metropolitan-district-council/wolverhampton","JOHNSTONES DEC CENTRE",124.74,"Bilston Market & Licensed Operations","5231","Equipment - Health and Safety","03/06/2019"
"Wolverhampton City Council","http://opendatacommunities.org/id/metropolitan-district-council/wolverhampton","WIX.COM",93.13,"Technical Support","5817","Computing - Purchase of Software","03/06/2019"
"Wolverhampton City Council","http://opendatacommunities.org/id/metropolitan-district-council/wolverhampton","Wix.com",186.26,"Technical Support","5817","Computing - Purchase of Software","03/06/2019"
"Wolverhampton City Council","http://opendatacommunities.org/id/metropolitan-district-council/wolverhampton","THE POST OFFICE",10.85,"Education And Access","9402","Comms - Postage","03/06/2019"
"Wolverhampton City Council","http://opendatacommunities.org/id/metropolitan-district-council/wolverhampton","POST OFFICE COUNTER",11,"Looked After Team 2","9402","Comms - Postage","03/06/2019"
"Wolverhampton City Council","http://opendatacommunities.org/id/metropolitan-district-council/wolverhampton","Virgin Trains",184,"Welfare Rights","4112","Public Transport","03/06/2019"
"Wolverhampton City Council","http://opendatacommunities.org/id/metropolitan-district-council/wolverhampton","Amazon.co.uk MN72R3IR4",7.98,"Parks - Ranger Service","5969","Equipment - Purchase","03/06/2019"
"Wolverhampton City Council","http://opendatacommunities.org/id/metropolitan-district-council/wolverhampton","B&M RETAIL LTD",8.32,"Duke Street Bungalows","5310","R4010","03/06/2019"
"Wolverhampton City Council","http://opendatacommunities.org/id/metropolitan-district-council/wolverhampton","ARGOS LTD",9.17,"Duke Street Bungalows","5310","R4010","03/06/2019"
"Wolverhampton City Council","http://opendatacommunities.org/id/metropolitan-district-council/wolverhampton","Virgin Trains",95,"Scrutiny & Transparency","4112","Public Transport","03/06/2019"
"Wolverhampton City Council","http://opendatacommunities.org/id/metropolitan-district-council/wolverhampton","HANDISCOVER.COM",193.96,"Mayoral Expenses","5734","Accommodation Costs","03/06/2019"
"Wolverhampton City Council","http://opendatacommunities.org/id/metropolitan-district-council/wolverhampton","WWW.SPARKENERGY.CO.UK",126.46,"LAC Transitions Team","4900","Client Allowances","03/06/2019"
"Wolverhampton City Council","http://opendatacommunities.org/id/metropolitan-district-council/wolverhampton","ASDA GROCERIES ONLINE",101.14,"Bradley Resource Centre","5411","Provisions (Not for resale)","03/06/2019"
